Workbook

Sheet 卡路里攤銷
B1: 熱量攤銷排程
B2: =IFERROR(CONCATENATE("只花 ",DATEDIF(開始日期,目標日期,"m")," 個月又 ", DATEDIF(開始日期,目標日期,"md"),天數),"") -> 只花 3 個月又 14 天 | H2: =IF(目標體重="減少","不建議您將卡路里攝入量減少超過每日卡路里需求量 1000 卡以上，或每天攝入少於 " & IF(性別="女性","1200 卡。","每天 1800 卡。"),"") -> 不建議您將卡路里攝入量減少超過每日卡路里需求量 1000 卡以上，或每天攝入少於 1200 卡。
B3: =IF(目標體重="保持",""," 直到您達成目標！") -> 直到您達成目標！ | H3: =IF(目標體重="保持","",CONCATENATE("目標日期是以建議每週平均",IF(目標體重="減少","減重 ","增加 "),IF(計算單位="英制","1 磅",".45 k"),"為基礎。")) -> 目標日期是以建議每週平均減重 1 磅為基礎。
B4: 運動程度 | H4: 度量系統 | J4: 目前體重 | L4: 年齡
B5: 中等運動 | E5: =VLOOKUP(等級,運動類型[],2,FALSE) -> 每週運動 3-5 天 | H5: 英制 | J5: 150.0 | L5: 34
B6: 我想要我的體重 | H6: =IF(標準,"身高 (英呎)","身高 (公尺)") -> 身高 (英呎) | I6: =IF(標準,"英吋","公分") -> 英吋 | J6: 目標體重 | L6: 性別
B7: 減少 | H7: 5 | I7: 5.0 | J7: 135.0 | L7: 女性
B8: 目標開始日期 | E8: 目標日期 | H8: 初始每日卡路里需求 | J8: 初始每日卡路里攝入量 | L8: =IF(目標體重="增加","需要多餘的卡路里","燃燒的卡路里") -> 燃燒的卡路里
B9: =TODAY()-5 -> 2022-08-14 | E9: =IF(目標體重="保持","",IF(AND(全部完成,B12<>""),MAX(B11:B998),"目標日期不能小於開始日期。請檢查您的項目。")) -> 2022-11-28 | H9: =IF(全部完成,BMR*活動因子,"") -> 2252 | J9: =IF(全部完成,BMR*活動因子+IF(目標體重="保持",0,IF(目標體重="減少",-500,IF(目標體重="增加",500))),"") -> 1752 | L9: =IF(目標體重="保持","",(減肥減重)*IF(標準,1,2.2)*3500) -> 52500
B10: 日期 | C10: 週 | D10: 日 | E10: 體重 | F10: BMR | G10: 已攝入卡路里 | H10: 已燃燒卡路里 | I10: =IF(目標體重="增加", "多餘卡路里","卡路里不足") -> 卡路里不足 | J10: 剩餘卡路里 | K10: =IF(計算單位="英制","剩餘磅數","剩餘公斤數") -> 剩餘磅數 | L10: =IF(目標體重="增加","增加","減少") -> 減少 | M10: 目標百分比
B11: =IFERROR(IF(保持,"",開始日期), "") -> 2022-08-14 | C11: =IFERROR(IF(保持,"",1), "") -> 1 | D11: =IFERROR(IF(AND(ISNUMBER(J11),J11>0),1,""), "") -> 1 | E11: =IFERROR(IF(保持,"",體重), "") -> 150.0 | F11: =IFERROR(IF(保持,"",IF(E11>0,跑步BMR,"")), "") -> 1453 | G11: =IFERROR(IF(保持,"",初始攝取卡路里), "") -> 1752 | H11: =IFERROR(F11*(活動因子),"") -> 2252 | I11: =IFERROR(IF(目標體重="增加",G11-H11,H11-G11),"") -> 500 | J11: =IFERROR(L9, "") -> 52500 | K11: =IFERROR(IF(標準,J11/每磅卡路里,J11/每磅卡路里/2.2),"") -> 15.0 | L11: =IFERROR(減肥減重-K11,"") -> 0.00 | M11: =IFERROR(IF(保持,"",0%), "") -> 0%
B12: =IFERROR(IF(K11>0,B11+1,""),"") -> 2022-08-15 | C12: =IFERROR(IF(D12<>"",IF(MOD(D12,7)=1,(D11/7)+1,""),""),"") ->  | D12: =IFERROR(IF(K11>0,D11+1,""),"") -> 2 | E12: =IFERROR(IF($D12<>"",E11-(I11/每磅卡路里),""),"") -> 149.9 | F12: =IFERROR(跑步BMR,"") -> 1453 | G12: =IFERROR(IF(K11>0,F11*活動因子+IF(目標體重="保持",0,IF(目標體重="減少",-500,IF(目標體重="增加",500))),""),"") -> 1752 | H12: =IFERROR(F12*(活動因子),"") -> 2251 | I12: 499 | J12: =IFERROR(J11-I12,"") -> 52001 | K12: =IFERROR(IF(標準,J12/每磅卡路里,J12/每磅卡路里/2.2),"") -> 14.9 | L12: =IFERROR(減肥減重-K12,"") -> 0.14 | M12: =IFERROR(IF(B11<>"",L12/(減肥減重),""),"") -> 1%
B13: 2022-08-16 | C13: =IFERROR(IF(D13<>"",IF(MOD(D13,7)=1,(D12/7)+1,""),""),"") ->  | D13: 3 | E13: 149.7 | F13: =IFERROR(跑步BMR,"") -> 1452 | G13: =IFERROR(IF(K12>0,F12*活動因子+IF(目標體重="保持",0,IF(目標體重="減少",-500,IF(目標體重="增加",500))),""),"") -> 1751 | H13: =IFERROR(F13*(活動因子),"") -> 2251 | I13: 499 | J13: =IFERROR(J12-I13,"") -> 51502 | K13: =IFERROR(IF(標準,J13/每磅卡路里,J13/每磅卡路里/2.2),"") -> 14.7 | L13: =IFERROR(減肥減重-K13,"") -> 0.29 | M13: =IFERROR(IF(B12<>"",L13/(減肥減重),""),"") -> 2%
B14: 2022-08-17 | D14: 4 | E14: 149.6 | F14: =IFERROR(跑步BMR,"") -> 1451 | G14: =IFERROR(IF(K13>0,F13*活動因子+IF(目標體重="保持",0,IF(目標體重="減少",-500,IF(目標體重="增加",500))),""),"") -> 1751 | H14: =IFERROR(F14*(活動因子),"") -> 2250 | I14: 499 | J14: 51003 | K14: =IFERROR(IF(標準,J14/每磅卡路里,J14/每磅卡路里/2.2),"") -> 14.6 | L14: =IFERROR(減肥減重-K14,"") -> 0.43 | M14: =IFERROR(IF(B13<>"",L14/(減肥減重),""),"") -> 3%
B15: 2022-08-18 | D15: 5 | E15: 149.4 | F15: =IFERROR(跑步BMR,"") -> 1451 | G15: =IFERROR(IF(K14>0,F14*活動因子+IF(目標體重="保持",0,IF(目標體重="減少",-500,IF(目標體重="增加",500))),""),"") -> 1750 | H15: =IFERROR(F15*(活動因子),"") -> 2249 | I15: 499 | J15: 50504 | K15: =IFERROR(IF(標準,J15/每磅卡路里,J15/每磅卡路里/2.2),"") -> 14.4 | L15: =IFERROR(減肥減重-K15,"") -> 0.57 | M15: =IFERROR(IF(B14<>"",L15/(減肥減重),""),"") -> 4%
B16: 2022-08-19 | D16: 6 | E16: 149.3 | F16: =IFERROR(跑步BMR,"") -> 1450 | G16: =IFERROR(IF(K15>0,F15*活動因子+IF(目標體重="保持",0,IF(目標體重="減少",-500,IF(目標體重="增加",500))),""),"") -> 1749 | H16: =IFERROR(F16*(活動因子),"") -> 2248 | I16: 499 | J16: 50005 | K16: =IFERROR(IF(標準,J16/每磅卡路里,J16/每磅卡路里/2.2),"") -> 14.3 | L16: =IFERROR(減肥減重-K16,"") -> 0.71 | M16: =IFERROR(IF(B15<>"",L16/(減肥減重),""),"") -> 5%
B17: 2022-08-20 | D17: 7 | E17: 149.1 | F17: =IFERROR(跑步BMR,"") -> 1449 | G17: =IFERROR(IF(K16>0,F16*活動因子+IF(目標體重="保持",0,IF(目標體重="減少",-500,IF(目標體重="增加",500))),""),"") -> 1748 | H17: =IFERROR(F17*(活動因子),"") -> 2247 | I17: 499 | J17: 49506 | K17: =IFERROR(IF(標準,J17/每磅卡路里,J17/每磅卡路里/2.2),"") -> 14.1 | L17: =IFERROR(減肥減重-K17,"") -> 0.86 | M17: =IFERROR(IF(B16<>"",L17/(減肥減重),""),"") -> 6%
B18: 2022-08-21 | C18: 2 | D18: 8 | E18: 149.0 | F18: =IFERROR(跑步BMR,"") -> 1449 | G18: =IFERROR(IF(K17>0,F17*活動因子+IF(目標體重="保持",0,IF(目標體重="減少",-500,IF(目標體重="增加",500))),""),"") -> 1747 | H18: =IFERROR(F18*(活動因子),"") -> 2246 | I18: 499 | J18: 49007 | K18: =IFERROR(IF(標準,J18/每磅卡路里,J18/每磅卡路里/2.2),"") -> 14.0 | L18: =IFERROR(減肥減重-K18,"") -> 1.00 | M18: =IFERROR(IF(B17<>"",L18/(減肥減重),""),"") -> 7%
B19: 2022-08-22 | D19: 9 | E19: 148.9 | F19: =IFERROR(跑步BMR,"") -> 1448 | G19: =IFERROR(IF(K18>0,F18*活動因子+IF(目標體重="保持",0,IF(目標體重="減少",-500,IF(目標體重="增加",500))),""),"") -> 1746 | H19: =IFERROR(F19*(活動因子),"") -> 2245 | I19: 499 | J19: 48508 | K19: =IFERROR(IF(標準,J19/每磅卡路里,J19/每磅卡路里/2.2),"") -> 13.9 | L19: =IFERROR(減肥減重-K19,"") -> 1.14 | M19: =IFERROR(IF(B18<>"",L19/(減肥減重),""),"") -> 8%
B20: 2022-08-23 | D20: 10 | E20: 148.7 | F20: =IFERROR(跑步BMR,"") -> 1448 | G20: =IFERROR(IF(K19>0,F19*活動因子+IF(目標體重="保持",0,IF(目標體重="減少",-500,IF(目標體重="增加",500))),""),"") -> 1745 | H20: =IFERROR(F20*(活動因子),"") -> 2244 | I20: 499 | J20: 48009 | K20: =IFERROR(IF(標準,J20/每磅卡路里,J20/每磅卡路里/2.2),"") -> 13.7 | L20: =IFERROR(減肥減重-K20,"") -> 1.28 | M20: =IFERROR(IF(B19<>"",L20/(減肥減重),""),"") -> 9%
B21: 2022-08-24 | D21: 11 | E21: 148.6 | F21: =IFERROR(跑步BMR,"") -> 1447 | G21: =IFERROR(IF(K20>0,F20*活動因子+IF(目標體重="保持",0,IF(目標體重="減少",-500,IF(目標體重="增加",500))),""),"") -> 1744 | H21: =IFERROR(F21*(活動因子),"") -> 2243 | I21: 499 | J21: 47510 | K21: =IFERROR(IF(標準,J21/每磅卡路里,J21/每磅卡路里/2.2),"") -> 13.6 | L21: =IFERROR(減肥減重-K21,"") -> 1.43 | M21: =IFERROR(IF(B20<>"",L21/(減肥減重),""),"") -> 10%
B22: 2022-08-25 | D22: 12 | E22: 148.4 | F22: =IFERROR(跑步BMR,"") -> 1446 | G22: =IFERROR(IF(K21>0,F21*活動因子+IF(目標體重="保持",0,IF(目標體重="減少",-500,IF(目標體重="增加",500))),""),"") -> 1743 | H22: =IFERROR(F22*(活動因子),"") -> 2242 | I22: 499 | J22: 47011 | K22: =IFERROR(IF(標準,J22/每磅卡路里,J22/每磅卡路里/2.2),"") -> 13.4 | L22: =IFERROR(減肥減重-K22,"") -> 1.57 | M22: =IFERROR(IF(B21<>"",L22/(減肥減重),""),"") -> 10%
B23: 2022-08-26 | D23: 13 | E23: 148.3 | F23: =IFERROR(跑步BMR,"") -> 1446 | G23: =IFERROR(IF(K22>0,F22*活動因子+IF(目標體重="保持",0,IF(目標體重="減少",-500,IF(目標體重="增加",500))),""),"") -> 1742 | H23: =IFERROR(F23*(活動因子),"") -> 2241 | I23: 499 | J23: 46512 | K23: =IFERROR(IF(標準,J23/每磅卡路里,J23/每磅卡路里/2.2),"") -> 13.3 | L23: =IFERROR(減肥減重-K23,"") -> 1.71 | M23: =IFERROR(IF(B22<>"",L23/(減肥減重),""),"") -> 11%
B24: 2022-08-27 | D24: 14 | E24: 148.1 | F24: =IFERROR(跑步BMR,"") -> 1445 | G24: =IFERROR(IF(K23>0,F23*活動因子+IF(目標體重="保持",0,IF(目標體重="減少",-500,IF(目標體重="增加",500))),""),"") -> 1741 | H24: =IFERROR(F24*(活動因子),"") -> 2240 | I24: 499 | J24: 46012 | K24: =IFERROR(IF(標準,J24/每磅卡路里,J24/每磅卡路里/2.2),"") -> 13.1 | L24: =IFERROR(減肥減重-K24,"") -> 1.85 | M24: =IFERROR(IF(B23<>"",L24/(減肥減重),""),"") -> 12%
B25: 2022-08-28 | C25: 3 | D25: 15 | E25: 148.0 | F25: =IFERROR(跑步BMR,"") -> 1445 | G25: =IFERROR(IF(K24>0,F24*活動因子+IF(目標體重="保持",0,IF(目標體重="減少",-500,IF(目標體重="增加",500))),""),"") -> 1740 | H25: =IFERROR(F25*(活動因子),"") -> 2239 | I25: 499 | J25: 45513 | K25: =IFERROR(IF(標準,J25/每磅卡路里,J25/每磅卡路里/2.2),"") -> 13.0 | L25: =IFERROR(減肥減重-K25,"") -> 2.00 | M25: =IFERROR(IF(B24<>"",L25/(減肥減重),""),"") -> 13%
B26: 2022-08-29 | D26: 16 | E26: 147.9 | F26: =IFERROR(跑步BMR,"") -> 1444 | G26: =IFERROR(IF(K25>0,F25*活動因子+IF(目標體重="保持",0,IF(目標體重="減少",-500,IF(目標體重="增加",500))),""),"") -> 1739 | H26: =IFERROR(F26*(活動因子),"") -> 2238 | I26: 499 | J26: 45014 | K26: =IFERROR(IF(標準,J26/每磅卡路里,J26/每磅卡路里/2.2),"") -> 12.9 | L26: =IFERROR(減肥減重-K26,"") -> 2.14 | M26: =IFERROR(IF(B25<>"",L26/(減肥減重),""),"") -> 14%
B27: 2022-08-30 | D27: 17 | E27: 147.7 | F27: =IFERROR(跑步BMR,"") -> 1443 | G27: =IFERROR(IF(K26>0,F26*活動因子+IF(目標體重="保持",0,IF(目標體重="減少",-500,IF(目標體重="增加",500))),""),"") -> 1738 | H27: =IFERROR(F27*(活動因子),"") -> 2237 | I27: 499 | J27: 44515 | K27: =IFERROR(IF(標準,J27/每磅卡路里,J27/每磅卡路里/2.2),"") -> 12.7 | L27: =IFERROR(減肥減重-K27,"") -> 2.28 | M27: =IFERROR(IF(B26<>"",L27/(減肥減重),""),"") -> 15%
B28: 2022-08-31 | D28: 18 | E28: 147.6 | F28: =IFERROR(跑步BMR,"") -> 1443 | G28: =IFERROR(IF(K27>0,F27*活動因子+IF(目標體重="保持",0,IF(目標體重="減少",-500,IF(目標體重="增加",500))),""),"") -> 1737 | H28: =IFERROR(F28*(活動因子),"") -> 2236 | I28: 499 | J28: 44016 | K28: =IFERROR(IF(標準,J28/每磅卡路里,J28/每磅卡路里/2.2),"") -> 12.6 | L28: =IFERROR(減肥減重-K28,"") -> 2.42 | M28: =IFERROR(IF(B27<>"",L28/(減肥減重),""),"") -> 16%
B29: 2022-09-01 | D29: 19 | E29: 147.4 | F29: =IFERROR(跑步BMR,"") -> 1442 | G29: =IFERROR(IF(K28>0,F28*活動因子+IF(目標體重="保持",0,IF(目標體重="減少",-500,IF(目標體重="增加",500))),""),"") -> 1736 | H29: =IFERROR(F29*(活動因子),"") -> 2235 | I29: 499 | J29: 43517 | K29: =IFERROR(IF(標準,J29/每磅卡路里,J29/每磅卡路里/2.2),"") -> 12.4 | L29: =IFERROR(減肥減重-K29,"") -> 2.57 | M29: =IFERROR(IF(B28<>"",L29/(減肥減重),""),"") -> 17%
B30: 2022-09-02 | D30: 20 | E30: 147.3 | F30: =IFERROR(跑步BMR,"") -> 1441 | G30: =IFERROR(IF(K29>0,F29*活動因子+IF(目標體重="保持",0,IF(目標體重="減少",-500,IF(目標體重="增加",500))),""),"") -> 1735 | H30: =IFERROR(F30*(活動因子),"") -> 2234 | I30: 499 | J30: 43018 | K30: =IFERROR(IF(標準,J30/每磅卡路里,J30/每磅卡路里/2.2),"") -> 12.3 | L30: =IFERROR(減肥減重-K30,"") -> 2.71 | M30: =IFERROR(IF(B29<>"",L30/(減肥減重),""),"") -> 18%
B31: 2022-09-03 | D31: 21 | E31: 147.1 | F31: =IFERROR(跑步BMR,"") -> 1441 | G31: =IFERROR(IF(K30>0,F30*活動因子+IF(目標體重="保持",0,IF(目標體重="減少",-500,IF(目標體重="增加",500))),""),"") -> 1734 | H31: =IFERROR(F31*(活動因子),"") -> 2233 | I31: 499 | J31: 42519 | K31: =IFERROR(IF(標準,J31/每磅卡路里,J31/每磅卡路里/2.2),"") -> 12.1 | L31: =IFERROR(減肥減重-K31,"") -> 2.85 | M31: =IFERROR(IF(B30<>"",L31/(減肥減重),""),"") -> 19%
B32: 2022-09-04 | C32: 4 | D32: 22 | E32: 147.0 | F32: =IFERROR(跑步BMR,"") -> 1440 | G32: =IFERROR(IF(K31>0,F31*活動因子+IF(目標體重="保持",0,IF(目標體重="減少",-500,IF(目標體重="增加",500))),""),"") -> 1733 | H32: =IFERROR(F32*(活動因子),"") -> 2232 | I32: 499 | J32: 42020 | K32: =IFERROR(IF(標準,J32/每磅卡路里,J32/每磅卡路里/2.2),"") -> 12.0 | L32: =IFERROR(減肥減重-K32,"") -> 2.99 | M32: =IFERROR(IF(B31<>"",L32/(減肥減重),""),"") -> 20%
B33: 2022-09-05 | D33: 23 | E33: 146.9 | F33: =IFERROR(跑步BMR,"") -> 1440 | G33: =IFERROR(IF(K32>0,F32*活動因子+IF(目標體重="保持",0,IF(目標體重="減少",-500,IF(目標體重="增加",500))),""),"") -> 1732 | H33: =IFERROR(F33*(活動因子),"") -> 2231 | I33: 499 | J33: 41521 | K33: =IFERROR(IF(標準,J33/每磅卡路里,J33/每磅卡路里/2.2),"") -> 11.9 | L33: =IFERROR(減肥減重-K33,"") -> 3.14 | M33: =IFERROR(IF(B32<>"",L33/(減肥減重),""),"") -> 21%
B34: 2022-09-06 | D34: 24 | E34: 146.7 | F34: =IFERROR(跑步BMR,"") -> 1439 | G34: =IFERROR(IF(K33>0,F33*活動因子+IF(目標體重="保持",0,IF(目標體重="減少",-500,IF(目標體重="增加",500))),""),"") -> 1731 | H34: =IFERROR(F34*(活動因子),"") -> 2230 | I34: 499 | J34: 41022 | K34: =IFERROR(IF(標準,J34/每磅卡路里,J34/每磅卡路里/2.2),"") -> 11.7 | L34: =IFERROR(減肥減重-K34,"") -> 3.28 | M34: =IFERROR(IF(B33<>"",L34/(減肥減重),""),"") -> 22%
B35: 2022-09-07 | D35: 25 | E35: 146.6 | F35: =IFERROR(跑步BMR,"") -> 1438 | G35: =IFERROR(IF(K34>0,F34*活動因子+IF(目標體重="保持",0,IF(目標體重="減少",-500,IF(目標體重="增加",500))),""),"") -> 1730 | H35: =IFERROR(F35*(活動因子),"") -> 2229 | I35: 499 | J35: 40523 | K35: =IFERROR(IF(標準,J35/每磅卡路里,J35/每磅卡路里/2.2),"") -> 11.6 | L35: =IFERROR(減肥減重-K35,"") -> 3.42 | M35: =IFERROR(IF(B34<>"",L35/(減肥減重),""),"") -> 23%
B36: 2022-09-08 | D36: 26 | E36: 146.4 | F36: =IFERROR(跑步BMR,"") -> 1438 | G36: =IFERROR(IF(K35>0,F35*活動因子+IF(目標體重="保持",0,IF(目標體重="減少",-500,IF(目標體重="增加",500))),""),"") -> 1729 | H36: =IFERROR(F36*(活動因子),"") -> 2228 | I36: 499 | J36: 40024 | K36: =IFERROR(IF(標準,J36/每磅卡路里,J36/每磅卡路里/2.2),"") -> 11.4 | L36: =IFERROR(減肥減重-K36,"") -> 3.56 | M36: =IFERROR(IF(B35<>"",L36/(減肥減重),""),"") -> 24%
B37: 2022-09-09 | D37: 27 | E37: 146.3 | F37: =IFERROR(跑步BMR,"") -> 1437 | G37: =IFERROR(IF(K36>0,F36*活動因子+IF(目標體重="保持",0,IF(目標體重="減少",-500,IF(目標體重="增加",500))),""),"") -> 1728 | H37: =IFERROR(F37*(活動因子),"") -> 2227 | I37: 499 | J37: 39525 | K37: =IFERROR(IF(標準,J37/每磅卡路里,J37/每磅卡路里/2.2),"") -> 11.3 | L37: =IFERROR(減肥減重-K37,"") -> 3.71 | M37: =IFERROR(IF(B36<>"",L37/(減肥減重),""),"") -> 25%
B38: 2022-09-10 | D38: 28 | E38: 146.1 | F38: =IFERROR(跑步BMR,"") -> 1436 | G38: =IFERROR(IF(K37>0,F37*活動因子+IF(目標體重="保持",0,IF(目標體重="減少",-500,IF(目標體重="增加",500))),""),"") -> 1727 | H38: =IFERROR(F38*(活動因子),"") -> 2227 | I38: 499 | J38: 39026 | K38: =IFERROR(IF(標準,J38/每磅卡路里,J38/每磅卡路里/2.2),"") -> 11.2 | L38: =IFERROR(減肥減重-K38,"") -> 3.85 | M38: =IFERROR(IF(B37<>"",L38/(減肥減重),""),"") -> 26%
B39: 2022-09-11 | C39: 5 | D39: 29 | E39: 146.0 | F39: =IFERROR(跑步BMR,"") -> 1436 | G39: =IFERROR(IF(K38>0,F38*活動因子+IF(目標體重="保持",0,IF(目標體重="減少",-500,IF(目標體重="增加",500))),""),"") -> 1727 | H39: =IFERROR(F39*(活動因子),"") -> 2226 | I39: 499 | J39: 38527 | K39: =IFERROR(IF(標準,J39/每磅卡路里,J39/每磅卡路里/2.2),"") -> 11.0 | L39: =IFERROR(減肥減重-K39,"") -> 3.99 | M39: =IFERROR(IF(B38<>"",L39/(減肥減重),""),"") -> 27%
B40: 2022-09-12 | D40: 30 | E40: 145.9 | F40: =IFERROR(跑步BMR,"") -> 1435 | G40: =IFERROR(IF(K39>0,F39*活動因子+IF(目標體重="保持",0,IF(目標體重="減少",-500,IF(目標體重="增加",500))),""),"") -> 1726 | H40: =IFERROR(F40*(活動因子),"") -> 2225 | I40: 499 | J40: 38028 | K40: =IFERROR(IF(標準,J40/每磅卡路里,J40/每磅卡路里/2.2),"") -> 10.9 | L40: =IFERROR(減肥減重-K40,"") -> 4.13 | M40: =IFERROR(IF(B39<>"",L40/(減肥減重),""),"") -> 28%
B41: 2022-09-13 | D41: 31 | E41: 145.7 | F41: =IFERROR(跑步BMR,"") -> 1435 | G41: =IFERROR(IF(K40>0,F40*活動因子+IF(目標體重="保持",0,IF(目標體重="減少",-500,IF(目標體重="增加",500))),""),"") -> 1725 | H41: =IFERROR(F41*(活動因子),"") -> 2224 | I41: 499 | J41: 37529 | K41: =IFERROR(IF(標準,J41/每磅卡路里,J41/每磅卡路里/2.2),"") -> 10.7 | L41: =IFERROR(減肥減重-K41,"") -> 4.28 | M41: =IFERROR(IF(B40<>"",L41/(減肥減重),""),"") -> 29%
B42: 2022-09-14 | D42: 32 | E42: 145.6 | F42: =IFERROR(跑步BMR,"") -> 1434 | G42: =IFERROR(IF(K41>0,F41*活動因子+IF(目標體重="保持",0,IF(目標體重="減少",-500,IF(目標體重="增加",500))),""),"") -> 1724 | H42: =IFERROR(F42*(活動因子),"") -> 2223 | I42: 499 | J42: 37030 | K42: =IFERROR(IF(標準,J42/每磅卡路里,J42/每磅卡路里/2.2),"") -> 10.6 | L42: =IFERROR(減肥減重-K42,"") -> 4.42 | M42: =IFERROR(IF(B41<>"",L42/(減肥減重),""),"") -> 29%
B43: 2022-09-15 | D43: 33 | E43: 145.4 | F43: =IFERROR(跑步BMR,"") -> 1433 | G43: =IFERROR(IF(K42>0,F42*活動因子+IF(目標體重="保持",0,IF(目標體重="減少",-500,IF(目標體重="增加",500))),""),"") -> 1723 | H43: =IFERROR(F43*(活動因子),"") -> 2222 | I43: 499 | J43: 36531 | K43: =IFERROR(IF(標準,J43/每磅卡路里,J43/每磅卡路里/2.2),"") -> 10.4 | L43: =IFERROR(減肥減重-K43,"") -> 4.56 | M43: =IFERROR(IF(B42<>"",L43/(減肥減重),""),"") -> 30%
B44: 2022-09-16 | D44: 34 | E44: 145.3 | F44: =IFERROR(跑步BMR,"") -> 1433 | G44: =IFERROR(IF(K43>0,F43*活動因子+IF(目標體重="保持",0,IF(目標體重="減少",-500,IF(目標體重="增加",500))),""),"") -> 1722 | H44: =IFERROR(F44*(活動因子),"") -> 2221 | I44: 499 | J44: 36032 | K44: =IFERROR(IF(標準,J44/每磅卡路里,J44/每磅卡路里/2.2),"") -> 10.3 | L44: =IFERROR(減肥減重-K44,"") -> 4.71 | M44: =IFERROR(IF(B43<>"",L44/(減肥減重),""),"") -> 31%
B45: 2022-09-17 | D45: 35 | E45: 145.2 | F45: =IFERROR(跑步BMR,"") -> 1432 | G45: =IFERROR(IF(K44>0,F44*活動因子+IF(目標體重="保持",0,IF(目標體重="減少",-500,IF(目標體重="增加",500))),""),"") -> 1721 | H45: =IFERROR(F45*(活動因子),"") -> 2220 | I45: 499 | J45: 35533 | K45: =IFERROR(IF(標準,J45/每磅卡路里,J45/每磅卡路里/2.2),"") -> 10.2 | L45: =IFERROR(減肥減重-K45,"") -> 4.85 | M45: =IFERROR(IF(B44<>"",L45/(減肥減重),""),"") -> 32%
B46: 2022-09-18 | C46: 6 | D46: 36 | E46: 145.0 | F46: =IFERROR(跑步BMR,"") -> 1431 | G46: =IFERROR(IF(K45>0,F45*活動因子+IF(目標體重="保持",0,IF(目標體重="減少",-500,IF(目標體重="增加",500))),""),"") -> 1720 | H46: =IFERROR(F46*(活動因子),"") -> 2219 | I46: 499 | J46: 35034 | K46: =IFERROR(IF(標準,J46/每磅卡路里,J46/每磅卡路里/2.2),"") -> 10.0 | L46: =IFERROR(減肥減重-K46,"") -> 4.99 | M46: =IFERROR(IF(B45<>"",L46/(減肥減重),""),"") -> 33%
B47: 2022-09-19 | D47: 37 | E47: 144.9 | F47: =IFERROR(跑步BMR,"") -> 1431 | G47: =IFERROR(IF(K46>0,F46*活動因子+IF(目標體重="保持",0,IF(目標體重="減少",-500,IF(目標體重="增加",500))),""),"") -> 1719 | H47: =IFERROR(F47*(活動因子),"") -> 2218 | I47: 499 | J47: 34535 | K47: =IFERROR(IF(標準,J47/每磅卡路里,J47/每磅卡路里/2.2),"") -> 9.9 | L47: =IFERROR(減肥減重-K47,"") -> 5.13 | M47: =IFERROR(IF(B46<>"",L47/(減肥減重),""),"") -> 34%
B48: 2022-09-20 | D48: 38 | E48: 144.7 | F48: =IFERROR(跑步BMR,"") -> 1430 | G48: =IFERROR(IF(K47>0,F47*活動因子+IF(目標體重="保持",0,IF(目標體重="減少",-500,IF(目標體重="增加",500))),""),"") -> 1718 | H48: =IFERROR(F48*(活動因子),"") -> 2217 | I48: 499 | J48: 34036 | K48: =IFERROR(IF(標準,J48/每磅卡路里,J48/每磅卡路里/2.2),"") -> 9.7 | L48: =IFERROR(減肥減重-K48,"") -> 5.28 | M48: =IFERROR(IF(B47<>"",L48/(減肥減重),""),"") -> 35%
B49: 2022-09-21 | D49: 39 | E49: 144.6 | F49: =IFERROR(跑步BMR,"") -> 1430 | G49: =IFERROR(IF(K48>0,F48*活動因子+IF(目標體重="保持",0,IF(目標體重="減少",-500,IF(目標體重="增加",500))),""),"") -> 1717 | H49: =IFERROR(F49*(活動因子),"") -> 2216 | I49: 499 | J49: 33537 | K49: =IFERROR(IF(標準,J49/每磅卡路里,J49/每磅卡路里/2.2),"") -> 9.6 | L49: =IFERROR(減肥減重-K49,"") -> 5.42 | M49: =IFERROR(IF(B48<>"",L49/(減肥減重),""),"") -> 36%
B50: 2022-09-22 | D50: 40 | E50: 144.4 | F50: =IFERROR(跑步BMR,"") -> 1429 | G50: =IFERROR(IF(K49>0,F49*活動因子+IF(目標體重="保持",0,IF(目標體重="減少",-500,IF(目標體重="增加",500))),""),"") -> 1716 | H50: =IFERROR(F50*(活動因子),"") -> 2215 | I50: 499 | J50: 33037 | K50: =IFERROR(IF(標準,J50/每磅卡路里,J50/每磅卡路里/2.2),"") -> 9.4 | L50: =IFERROR(減肥減重-K50,"") -> 5.56 | M50: =IFERROR(IF(B49<>"",L50/(減肥減重),""),"") -> 37%
B51: 2022-09-23 | D51: 41 | E51: 144.3 | F51: =IFERROR(跑步BMR,"") -> 1428 | G51: =IFERROR(IF(K50>0,F50*活動因子+IF(目標體重="保持",0,IF(目標體重="減少",-500,IF(目標體重="增加",500))),""),"") -> 1715 | H51: =IFERROR(F51*(活動因子),"") -> 2214 | I51: 499 | J51: 32538 | K51: =IFERROR(IF(標準,J51/每磅卡路里,J51/每磅卡路里/2.2),"") -> 9.3 | L51: =IFERROR(減肥減重-K51,"") -> 5.70 | M51: =IFERROR(IF(B50<>"",L51/(減肥減重),""),"") -> 38%
B52: 2022-09-24 | D52: 42 | E52: 144.2 | F52: =IFERROR(跑步BMR,"") -> 1428 | G52: =IFERROR(IF(K51>0,F51*活動因子+IF(目標體重="保持",0,IF(目標體重="減少",-500,IF(目標體重="增加",500))),""),"") -> 1714 | H52: =IFERROR(F52*(活動因子),"") -> 2213 | I52: 499 | J52: 32039 | K52: =IFERROR(IF(標準,J52/每磅卡路里,J52/每磅卡路里/2.2),"") -> 9.2 | L52: =IFERROR(減肥減重-K52,"") -> 5.85 | M52: =IFERROR(IF(B51<>"",L52/(減肥減重),""),"") -> 39%
B53: 2022-09-25 | C53: 7 | D53: 43 | E53: 144.0 | F53: =IFERROR(跑步BMR,"") -> 1427 | G53: =IFERROR(IF(K52>0,F52*活動因子+IF(目標體重="保持",0,IF(目標體重="減少",-500,IF(目標體重="增加",500))),""),"") -> 1713 | H53: =IFERROR(F53*(活動因子),"") -> 2212 | I53: 499 | J53: 31540 | K53: =IFERROR(IF(標準,J53/每磅卡路里,J53/每磅卡路里/2.2),"") -> 9.0 | L53: =IFERROR(減肥減重-K53,"") -> 5.99 | M53: =IFERROR(IF(B52<>"",L53/(減肥減重),""),"") -> 40%
B54: 2022-09-26 | D54: 44 | E54: 143.9 | F54: =IFERROR(跑步BMR,"") -> 1427 | G54: =IFERROR(IF(K53>0,F53*活動因子+IF(目標體重="保持",0,IF(目標體重="減少",-500,IF(目標體重="增加",500))),""),"") -> 1712 | H54: =IFERROR(F54*(活動因子),"") -> 2211 | I54: 499 | J54: 31041 | K54: =IFERROR(IF(標準,J54/每磅卡路里,J54/每磅卡路里/2.2),"") -> 8.9 | L54: =IFERROR(減肥減重-K54,"") -> 6.13 | M54: =IFERROR(IF(B53<>"",L54/(減肥減重),""),"") -> 41%
B55: 2022-09-27 | D55: 45 | E55: 143.7 | F55: =IFERROR(跑步BMR,"") -> 1426 | G55: =IFERROR(IF(K54>0,F54*活動因子+IF(目標體重="保持",0,IF(目標體重="減少",-500,IF(目標體重="增加",500))),""),"") -> 1711 | H55: =IFERROR(F55*(活動因子),"") -> 2210 | I55: 499 | J55: 30542 | K55: =IFERROR(IF(標準,J55/每磅卡路里,J55/每磅卡路里/2.2),"") -> 8.7 | L55: =IFERROR(減肥減重-K55,"") -> 6.27 | M55: =IFERROR(IF(B54<>"",L55/(減肥減重),""),"") -> 42%
B56: 2022-09-28 | D56: 46 | E56: 143.6 | F56: =IFERROR(跑步BMR,"") -> 1425 | G56: =IFERROR(IF(K55>0,F55*活動因子+IF(目標體重="保持",0,IF(目標體重="減少",-500,IF(目標體重="增加",500))),""),"") -> 1710 | H56: =IFERROR(F56*(活動因子),"") -> 2209 | I56: 499 | J56: 30043 | K56: =IFERROR(IF(標準,J56/每磅卡路里,J56/每磅卡路里/2.2),"") -> 8.6 | L56: =IFERROR(減肥減重-K56,"") -> 6.42 | M56: =IFERROR(IF(B55<>"",L56/(減肥減重),""),"") -> 43%
B57: 2022-09-29 | D57: 47 | E57: 143.4 | F57: =IFERROR(跑步BMR,"") -> 1425 | G57: =IFERROR(IF(K56>0,F56*活動因子+IF(目標體重="保持",0,IF(目標體重="減少",-500,IF(目標體重="增加",500))),""),"") -> 1709 | H57: =IFERROR(F57*(活動因子),"") -> 2208 | I57: 499 | J57: 29544 | K57: =IFERROR(IF(標準,J57/每磅卡路里,J57/每磅卡路里/2.2),"") -> 8.4 | L57: =IFERROR(減肥減重-K57,"") -> 6.56 | M57: =IFERROR(IF(B56<>"",L57/(減肥減重),""),"") -> 44%
B58: 2022-09-30 | D58: 48 | E58: 143.3 | F58: =IFERROR(跑步BMR,"") -> 1424 | G58: =IFERROR(IF(K57>0,F57*活動因子+IF(目標體重="保持",0,IF(目標體重="減少",-500,IF(目標體重="增加",500))),""),"") -> 1708 | H58: =IFERROR(F58*(活動因子),"") -> 2207 | I58: 499 | J58: 29045 | K58: =IFERROR(IF(標準,J58/每磅卡路里,J58/每磅卡路里/2.2),"") -> 8.3 | L58: =IFERROR(減肥減重-K58,"") -> 6.70 | M58: =IFERROR(IF(B57<>"",L58/(減肥減重),""),"") -> 45%
B59: 2022-10-01 | D59: 49 | E59: 143.2 | F59: =IFERROR(跑步BMR,"") -> 1423 | G59: =IFERROR(IF(K58>0,F58*活動因子+IF(目標體重="保持",0,IF(目標體重="減少",-500,IF(目標體重="增加",500))),""),"") -> 1707 | H59: =IFERROR(F59*(活動因子),"") -> 2206 | I59: 499 | J59: 28546 | K59: =IFERROR(IF(標準,J59/每磅卡路里,J59/每磅卡路里/2.2),"") -> 8.2 | L59: =IFERROR(減肥減重-K59,"") -> 6.84 | M59: =IFERROR(IF(B58<>"",L59/(減肥減重),""),"") -> 46%
B60: 2022-10-02 | C60: 8 | D60: 50 | E60: 143.0 | F60: =IFERROR(跑步BMR,"") -> 1423 | G60: =IFERROR(IF(K59>0,F59*活動因子+IF(目標體重="保持",0,IF(目標體重="減少",-500,IF(目標體重="增加",500))),""),"") -> 1706 | H60: =IFERROR(F60*(活動因子),"") -> 2205 | I60: 499 | J60: 28047 | K60: =IFERROR(IF(標準,J60/每磅卡路里,J60/每磅卡路里/2.2),"") -> 8.0 | L60: =IFERROR(減肥減重-K60,"") -> 6.99 | M60: =IFERROR(IF(B59<>"",L60/(減肥減重),""),"") -> 47%
B61: 2022-10-03 | D61: 51 | E61: 142.9 | F61: =IFERROR(跑步BMR,"") -> 1422 | G61: =IFERROR(IF(K60>0,F60*活動因子+IF(目標體重="保持",0,IF(目標體重="減少",-500,IF(目標體重="增加",500))),""),"") -> 1705 | H61: =IFERROR(F61*(活動因子),"") -> 2204 | I61: 499 | J61: 27548 | K61: =IFERROR(IF(標準,J61/每磅卡路里,J61/每磅卡路里/2.2),"") -> 7.9 | L61: =IFERROR(減肥減重-K61,"") -> 7.13 | M61: =IFERROR(IF(B60<>"",L61/(減肥減重),""),"") -> 48%
B62: 2022-10-04 | D62: 52 | E62: 142.7 | F62: =IFERROR(跑步BMR,"") -> 1422 | G62: =IFERROR(IF(K61>0,F61*活動因子+IF(目標體重="保持",0,IF(目標體重="減少",-500,IF(目標體重="增加",500))),""),"") -> 1704 | H62: =IFERROR(F62*(活動因子),"") -> 2203 | I62: 499 | J62: 27049 | K62: =IFERROR(IF(標準,J62/每磅卡路里,J62/每磅卡路里/2.2),"") -> 7.7 | L62: =IFERROR(減肥減重-K62,"") -> 7.27 | M62: =IFERROR(IF(B61<>"",L62/(減肥減重),""),"") -> 48%
B63: 2022-10-05 | D63: 53 | E63: 142.6 | F63: =IFERROR(跑步BMR,"") -> 1421 | G63: =IFERROR(IF(K62>0,F62*活動因子+IF(目標體重="保持",0,IF(目標體重="減少",-500,IF(目標體重="增加",500))),""),"") -> 1703 | H63: =IFERROR(F63*(活動因子),"") -> 2202 | I63: 499 | J63: 26550 | K63: =IFERROR(IF(標準,J63/每磅卡路里,J63/每磅卡路里/2.2),"") -> 7.6 | L63: =IFERROR(減肥減重-K63,"") -> 7.41 | M63: =IFERROR(IF(B62<>"",L63/(減肥減重),""),"") -> 49%
B64: 2022-10-06 | D64: 54 | E64: 142.4 | F64: =IFERROR(跑步BMR,"") -> 1420 | G64: =IFERROR(IF(K63>0,F63*活動因子+IF(目標體重="保持",0,IF(目標體重="減少",-500,IF(目標體重="增加",500))),""),"") -> 1702 | H64: =IFERROR(F64*(活動因子),"") -> 2202 | I64: 499 | J64: 26051 | K64: =IFERROR(IF(標準,J64/每磅卡路里,J64/每磅卡路里/2.2),"") -> 7.4 | L64: =IFERROR(減肥減重-K64,"") -> 7.56 | M64: =IFERROR(IF(B63<>"",L64/(減肥減重),""),"") -> 50%
B65: 2022-10-07 | D65: 55 | E65: 142.3 | F65: =IFERROR(跑步BMR,"") -> 1420 | G65: =IFERROR(IF(K64>0,F64*活動因子+IF(目標體重="保持",0,IF(目標體重="減少",-500,IF(目標體重="增加",500))),""),"") -> 1702 | H65: =IFERROR(F65*(活動因子),"") -> 2201 | I65: 499 | J65: 25552 | K65: =IFERROR(IF(標準,J65/每磅卡路里,J65/每磅卡路里/2.2),"") -> 7.3 | L65: =IFERROR(減肥減重-K65,"") -> 7.70 | M65: =IFERROR(IF(B64<>"",L65/(減肥減重),""),"") -> 51%
B66: 2022-10-08 | D66: 56 | E66: 142.2 | F66: =IFERROR(跑步BMR,"") -> 1419 | G66: =IFERROR(IF(K65>0,F65*活動因子+IF(目標體重="保持",0,IF(目標體重="減少",-500,IF(目標體重="增加",500))),""),"") -> 1701 | H66: =IFERROR(F66*(活動因子),"") -> 2200 | I66: 499 | J66: 25053 | K66: =IFERROR(IF(標準,J66/每磅卡路里,J66/每磅卡路里/2.2),"") -> 7.2 | L66: =IFERROR(減肥減重-K66,"") -> 7.84 | M66: =IFERROR(IF(B65<>"",L66/(減肥減重),""),"") -> 52%
B67: 2022-10-09 | C67: 9 | D67: 57 | E67: 142.0 | F67: =IFERROR(跑步BMR,"") -> 1418 | G67: =IFERROR(IF(K66>0,F66*活動因子+IF(目標體重="保持",0,IF(目標體重="減少",-500,IF(目標體重="增加",500))),""),"") -> 1700 | H67: =IFERROR(F67*(活動因子),"") -> 2199 | I67: 499 | J67: 24554 | K67: =IFERROR(IF(標準,J67/每磅卡路里,J67/每磅卡路里/2.2),"") -> 7.0 | L67: =IFERROR(減肥減重-K67,"") -> 7.98 | M67: =IFERROR(IF(B66<>"",L67/(減肥減重),""),"") -> 53%
B68: 2022-10-10 | D68: 58 | E68: 141.9 | F68: =IFERROR(跑步BMR,"") -> 1418 | G68: =IFERROR(IF(K67>0,F67*活動因子+IF(目標體重="保持",0,IF(目標體重="減少",-500,IF(目標體重="增加",500))),""),"") -> 1699 | H68: =IFERROR(F68*(活動因子),"") -> 2198 | I68: 499 | J68: 24055 | K68: =IFERROR(IF(標準,J68/每磅卡路里,J68/每磅卡路里/2.2),"") -> 6.9 | L68: =IFERROR(減肥減重-K68,"") -> 8.13 | M68: =IFERROR(IF(B67<>"",L68/(減肥減重),""),"") -> 54%
B69: 2022-10-11 | D69: 59 | E69: 141.7 | F69: =IFERROR(跑步BMR,"") -> 1417 | G69: =IFERROR(IF(K68>0,F68*活動因子+IF(目標體重="保持",0,IF(目標體重="減少",-500,IF(目標體重="增加",500))),""),"") -> 1698 | H69: =IFERROR(F69*(活動因子),"") -> 2197 | I69: 499 | J69: 23556 | K69: =IFERROR(IF(標準,J69/每磅卡路里,J69/每磅卡路里/2.2),"") -> 6.7 | L69: =IFERROR(減肥減重-K69,"") -> 8.27 | M69: =IFERROR(IF(B68<>"",L69/(減肥減重),""),"") -> 55%
B70: 2022-10-12 | D70: 60 | E70: 141.6 | F70: =IFERROR(跑步BMR,"") -> 1417 | G70: =IFERROR(IF(K69>0,F69*活動因子+IF(目標體重="保持",0,IF(目標體重="減少",-500,IF(目標體重="增加",500))),""),"") -> 1697 | H70: =IFERROR(F70*(活動因子),"") -> 2196 | I70: 499 | J70: 23057 | K70: =IFERROR(IF(標準,J70/每磅卡路里,J70/每磅卡路里/2.2),"") -> 6.6 | L70: =IFERROR(減肥減重-K70,"") -> 8.41 | M70: =IFERROR(IF(B69<>"",L70/(減肥減重),""),"") -> 56%
B71: 2022-10-13 | D71: 61 | E71: 141.4 | F71: =IFERROR(跑步BMR,"") -> 1416 | G71: =IFERROR(IF(K70>0,F70*活動因子+IF(目標體重="保持",0,IF(目標體重="減少",-500,IF(目標體重="增加",500))),""),"") -> 1696 | H71: =IFERROR(F71*(活動因子),"") -> 2195 | I71: 499 | J71: 22558 | K71: =IFERROR(IF(標準,J71/每磅卡路里,J71/每磅卡路里/2.2),"") -> 6.4 | L71: =IFERROR(減肥減重-K71,"") -> 8.55 | M71: =IFERROR(IF(B70<>"",L71/(減肥減重),""),"") -> 57%
B72: 2022-10-14 | D72: 62 | E72: 141.3 | F72: =IFERROR(跑步BMR,"") -> 1415 | G72: =IFERROR(IF(K71>0,F71*活動因子+IF(目標體重="保持",0,IF(目標體重="減少",-500,IF(目標體重="增加",500))),""),"") -> 1695 | H72: =IFERROR(F72*(活動因子),"") -> 2194 | I72: 499 | J72: 22059 | K72: =IFERROR(IF(標準,J72/每磅卡路里,J72/每磅卡路里/2.2),"") -> 6.3 | L72: =IFERROR(減肥減重-K72,"") -> 8.70 | M72: =IFERROR(IF(B71<>"",L72/(減肥減重),""),"") -> 58%
B73: 2022-10-15 | D73: 63 | E73: 141.2 | F73: =IFERROR(跑步BMR,"") -> 1415 | G73: =IFERROR(IF(K72>0,F72*活動因子+IF(目標體重="保持",0,IF(目標體重="減少",-500,IF(目標體重="增加",500))),""),"") -> 1694 | H73: =IFERROR(F73*(活動因子),"") -> 2193 | I73: 499 | J73: 21560 | K73: =IFERROR(IF(標準,J73/每磅卡路里,J73/每磅卡路里/2.2),"") -> 6.2 | L73: =IFERROR(減肥減重-K73,"") -> 8.84 | M73: =IFERROR(IF(B72<>"",L73/(減肥減重),""),"") -> 59%
B74: 2022-10-16 | C74: 10 | D74: 64 | E74: 141.0 | F74: =IFERROR(跑步BMR,"") -> 1414 | G74: =IFERROR(IF(K73>0,F73*活動因子+IF(目標體重="保持",0,IF(目標體重="減少",-500,IF(目標體重="增加",500))),""),"") -> 1693 | H74: =IFERROR(F74*(活動因子),"") -> 2192 | I74: 499 | J74: 21061 | K74: =IFERROR(IF(標準,J74/每磅卡路里,J74/每磅卡路里/2.2),"") -> 6.0 | L74: =IFERROR(減肥減重-K74,"") -> 8.98 | M74: =IFERROR(IF(B73<>"",L74/(減肥減重),""),"") -> 60%
B75: 2022-10-17 | D75: 65 | E75: 140.9 | F75: =IFERROR(跑步BMR,"") -> 1414 | G75: =IFERROR(IF(K74>0,F74*活動因子+IF(目標體重="保持",0,IF(目標體重="減少",-500,IF(目標體重="增加",500))),""),"") -> 1692 | H75: =IFERROR(F75*(活動因子),"") -> 2191 | I75: =IFERROR(IF(目標體重="增加",G75-H75,H75-G75),"") -> 499 | J75: 20562 | K75: =IFERROR(IF(標準,J75/每磅卡路里,J75/每磅卡路里/2.2),"") -> 5.9 | L75: =IFERROR(減肥減重-K75,"") -> 9.13 | M75: =IFERROR(IF(B74<>"",L75/(減肥減重),""),"") -> 61%
B76: =IFERROR(IF(K75>0,B75+1,""),"") -> 2022-10-18 | D76: =IFERROR(IF(K75>0,D75+1,""),"") -> 66 | E76: =IFERROR(IF($D76<>"",E75-(I75/每磅卡路里),""),"") -> 140.7 | F76: =IFERROR(跑步BMR,"") -> 1413 | G76: =IFERROR(IF(K75>0,F75*活動因子+IF(目標體重="保持",0,IF(目標體重="減少",-500,IF(目標體重="增加",500))),""),"") -> 1691 | H76: =IFERROR(F76*(活動因子),"") -> 2190 | I76: 499 | J76: 20062 | K76: =IFERROR(IF(標準,J76/每磅卡路里,J76/每磅卡路里/2.2),"") -> 5.7 | L76: =IFERROR(減肥減重-K76,"") -> 9.27 | M76: =IFERROR(IF(B75<>"",L76/(減肥減重),""),"") -> 62%
B77: 2022-10-19 | C77: =IFERROR(IF(D77<>"",IF(MOD(D77,7)=1,(D76/7)+1,""),""),"") ->  | D77: 67 | E77: 140.6 | F77: =IFERROR(跑步BMR,"") -> 1412 | G77: =IFERROR(IF(K76>0,F76*活動因子+IF(目標體重="保持",0,IF(目標體重="減少",-500,IF(目標體重="增加",500))),""),"") -> 1690 | H77: =IFERROR(F77*(活動因子),"") -> 2189 | I77: 499 | J77: =IFERROR(J76-I77,"") -> 19563 | K77: =IFERROR(IF(標準,J77/每磅卡路里,J77/每磅卡路里/2.2),"") -> 5.6 | L77: =IFERROR(減肥減重-K77,"") -> 9.41 | M77: =IFERROR(IF(B76<>"",L77/(減肥減重),""),"") -> 63%
B78: 2022-10-20 | D78: 68 | E78: 140.4 | F78: =IFERROR(跑步BMR,"") -> 1412 | G78: =IFERROR(IF(K77>0,F77*活動因子+IF(目標體重="保持",0,IF(目標體重="減少",-500,IF(目標體重="增加",500))),""),"") -> 1689 | H78: =IFERROR(F78*(活動因子),"") -> 2188 | I78: 499 | J78: 19064 | K78: =IFERROR(IF(標準,J78/每磅卡路里,J78/每磅卡路里/2.2),"") -> 5.4 | L78: =IFERROR(減肥減重-K78,"") -> 9.55 | M78: =IFERROR(IF(B77<>"",L78/(減肥減重),""),"") -> 64%
B79: 2022-10-21 | D79: 69 | E79: 140.3 | F79: =IFERROR(跑步BMR,"") -> 1411 | G79: =IFERROR(IF(K78>0,F78*活動因子+IF(目標體重="保持",0,IF(目標體重="減少",-500,IF(目標體重="增加",500))),""),"") -> 1688 | H79: =IFERROR(F79*(活動因子),"") -> 2187 | I79: 499 | J79: 18565 | K79: =IFERROR(IF(標準,J79/每磅卡路里,J79/每磅卡路里/2.2),"") -> 5.3 | L79: =IFERROR(減肥減重-K79,"") -> 9.70 | M79: =IFERROR(IF(B78<>"",L79/(減肥減重),""),"") -> 65%
B80: 2022-10-22 | D80: 70 | E80: 140.2 | F80: =IFERROR(跑步BMR,"") -> 1410 | G80: =IFERROR(IF(K79>0,F79*活動因子+IF(目標體重="保持",0,IF(目標體重="減少",-500,IF(目標體重="增加",500))),""),"") -> 1687 | H80: =IFERROR(F80*(活動因子),"") -> 2186 | I80: 499 | J80: 18066 | K80: =IFERROR(IF(標準,J80/每磅卡路里,J80/每磅卡路里/2.2),"") -> 5.2 | L80: =IFERROR(減肥減重-K80,"") -> 9.84 | M80: =IFERROR(IF(B79<>"",L80/(減肥減重),""),"") -> 66%
B81: 2022-10-23 | C81: 11 | D81: 71 | E81: 140.0 | F81: =IFERROR(跑步BMR,"") -> 1410 | G81: =IFERROR(IF(K80>0,F80*活動因子+IF(目標體重="保持",0,IF(目標體重="減少",-500,IF(目標體重="增加",500))),""),"") -> 1686 | H81: =IFERROR(F81*(活動因子),"") -> 2185 | I81: 499 | J81: 17567 | K81: =IFERROR(IF(標準,J81/每磅卡路里,J81/每磅卡路里/2.2),"") -> 5.0 | L81: =IFERROR(減肥減重-K81,"") -> 9.98 | M81: =IFERROR(IF(B80<>"",L81/(減肥減重),""),"") -> 67%
B82: 2022-10-24 | D82: 72 | E82: 139.9 | F82: =IFERROR(跑步BMR,"") -> 1409 | G82: =IFERROR(IF(K81>0,F81*活動因子+IF(目標體重="保持",0,IF(目標體重="減少",-500,IF(目標體重="增加",500))),""),"") -> 1685 | H82: =IFERROR(F82*(活動因子),"") -> 2184 | I82: 499 | J82: 17068 | K82: =IFERROR(IF(標準,J82/每磅卡路里,J82/每磅卡路里/2.2),"") -> 4.9 | L82: =IFERROR(減肥減重-K82,"") -> 10.12 | M82: =IFERROR(IF(B81<>"",L82/(減肥減重),""),"") -> 67%
B83: 2022-10-25 | D83: 73 | E83: 139.7 | F83: =IFERROR(跑步BMR,"") -> 1409 | G83: =IFERROR(IF(K82>0,F82*活動因子+IF(目標體重="保持",0,IF(目標體重="減少",-500,IF(目標體重="增加",500))),""),"") -> 1684 | H83: =IFERROR(F83*(活動因子),"") -> 2183 | I83: 499 | J83: 16569 | K83: =IFERROR(IF(標準,J83/每磅卡路里,J83/每磅卡路里/2.2),"") -> 4.7 | L83: =IFERROR(減肥減重-K83,"") -> 10.27 | M83: =IFERROR(IF(B82<>"",L83/(減肥減重),""),"") -> 68%
B84: 2022-10-26 | D84: 74 | E84: 139.6 | F84: =IFERROR(跑步BMR,"") -> 1408 | G84: =IFERROR(IF(K83>0,F83*活動因子+IF(目標體重="保持",0,IF(目標體重="減少",-500,IF(目標體重="增加",500))),""),"") -> 1683 | H84: =IFERROR(F84*(活動因子),"") -> 2182 | I84: 499 | J84: 16070 | K84: =IFERROR(IF(標準,J84/每磅卡路里,J84/每磅卡路里/2.2),"") -> 4.6 | L84: =IFERROR(減肥減重-K84,"") -> 10.41 | M84: =IFERROR(IF(B83<>"",L84/(減肥減重),""),"") -> 69%
B85: 2022-10-27 | D85: 75 | E85: 139.4 | F85: =IFERROR(跑步BMR,"") -> 1407 | G85: =IFERROR(IF(K84>0,F84*活動因子+IF(目標體重="保持",0,IF(目標體重="減少",-500,IF(目標體重="增加",500))),""),"") -> 1682 | H85: =IFERROR(F85*(活動因子),"") -> 2181 | I85: 499 | J85: 15571 | K85: =IFERROR(IF(標準,J85/每磅卡路里,J85/每磅卡路里/2.2),"") -> 4.4 | L85: =IFERROR(減肥減重-K85,"") -> 10.55 | M85: =IFERROR(IF(B84<>"",L85/(減肥減重),""),"") -> 70%
B86: 2022-10-28 | D86: 76 | E86: 139.3 | F86: =IFERROR(跑步BMR,"") -> 1407 | G86: =IFERROR(IF(K85>0,F85*活動因子+IF(目標體重="保持",0,IF(目標體重="減少",-500,IF(目標體重="增加",500))),""),"") -> 1681 | H86: =IFERROR(F86*(活動因子),"") -> 2180 | I86: 499 | J86: 15072 | K86: =IFERROR(IF(標準,J86/每磅卡路里,J86/每磅卡路里/2.2),"") -> 4.3 | L86: =IFERROR(減肥減重-K86,"") -> 10.69 | M86: =IFERROR(IF(B85<>"",L86/(減肥減重),""),"") -> 71%
B87: 2022-10-29 | D87: 77 | E87: 139.2 | F87: =IFERROR(跑步BMR,"") -> 1406 | G87: =IFERROR(IF(K86>0,F86*活動因子+IF(目標體重="保持",0,IF(目標體重="減少",-500,IF(目標體重="增加",500))),""),"") -> 1680 | H87: =IFERROR(F87*(活動因子),"") -> 2179 | I87: 499 | J87: 14573 | K87: =IFERROR(IF(標準,J87/每磅卡路里,J87/每磅卡路里/2.2),"") -> 4.2 | L87: =IFERROR(減肥減重-K87,"") -> 10.84 | M87: =IFERROR(IF(B86<>"",L87/(減肥減重),""),"") -> 72%
B88: 2022-10-30 | C88: 12 | D88: 78 | E88: 139.0 | F88: =IFERROR(跑步BMR,"") -> 1405 | G88: =IFERROR(IF(K87>0,F87*活動因子+IF(目標體重="保持",0,IF(目標體重="減少",-500,IF(目標體重="增加",500))),""),"") -> 1679 | H88: =IFERROR(F88*(活動因子),"") -> 2178 | I88: 499 | J88: 14074 | K88: =IFERROR(IF(標準,J88/每磅卡路里,J88/每磅卡路里/2.2),"") -> 4.0 | L88: =IFERROR(減肥減重-K88,"") -> 10.98 | M88: =IFERROR(IF(B87<>"",L88/(減肥減重),""),"") -> 73%
B89: 2022-10-31 | D89: 79 | E89: 138.9 | F89: =IFERROR(跑步BMR,"") -> 1405 | G89: =IFERROR(IF(K88>0,F88*活動因子+IF(目標體重="保持",0,IF(目標體重="減少",-500,IF(目標體重="增加",500))),""),"") -> 1678 | H89: =IFERROR(F89*(活動因子),"") -> 2177 | I89: 499 | J89: 13575 | K89: =IFERROR(IF(標準,J89/每磅卡路里,J89/每磅卡路里/2.2),"") -> 3.9 | L89: =IFERROR(減肥減重-K89,"") -> 11.12 | M89: =IFERROR(IF(B88<>"",L89/(減肥減重),""),"") -> 74%
B90: 2022-11-01 | D90: 80 | E90: 138.7 | F90: =IFERROR(跑步BMR,"") -> 1404 | G90: =IFERROR(IF(K89>0,F89*活動因子+IF(目標體重="保持",0,IF(目標體重="減少",-500,IF(目標體重="增加",500))),""),"") -> 1677 | H90: =IFERROR(F90*(活動因子),"") -> 2177 | I90: 499 | J90: 13076 | K90: =IFERROR(IF(標準,J90/每磅卡路里,J90/每磅卡路里/2.2),"") -> 3.7 | L90: =IFERROR(減肥減重-K90,"") -> 11.26 | M90: =IFERROR(IF(B89<>"",L90/(減肥減重),""),"") -> 75%
B91: 2022-11-02 | D91: 81 | E91: 138.6 | F91: =IFERROR(跑步BMR,"") -> 1404 | G91: =IFERROR(IF(K90>0,F90*活動因子+IF(目標體重="保持",0,IF(目標體重="減少",-500,IF(目標體重="增加",500))),""),"") -> 1677 | H91: =IFERROR(F91*(活動因子),"") -> 2176 | I91: 499 | J91: 12577 | K91: =IFERROR(IF(標準,J91/每磅卡路里,J91/每磅卡路里/2.2),"") -> 3.6 | L91: =IFERROR(減肥減重-K91,"") -> 11.41 | M91: =IFERROR(IF(B90<>"",L91/(減肥減重),""),"") -> 76%
B92: 2022-11-03 | D92: 82 | E92: 138.5 | F92: =IFERROR(跑步BMR,"") -> 1403 | G92: =IFERROR(IF(K91>0,F91*活動因子+IF(目標體重="保持",0,IF(目標體重="減少",-500,IF(目標體重="增加",500))),""),"") -> 1676 | H92: =IFERROR(F92*(活動因子),"") -> 2175 | I92: 499 | J92: 12078 | K92: =IFERROR(IF(標準,J92/每磅卡路里,J92/每磅卡路里/2.2),"") -> 3.5 | L92: =IFERROR(減肥減重-K92,"") -> 11.55 | M92: =IFERROR(IF(B91<>"",L92/(減肥減重),""),"") -> 77%
B93: 2022-11-04 | D93: 83 | E93: 138.3 | F93: =IFERROR(跑步BMR,"") -> 1402 | G93: =IFERROR(IF(K92>0,F92*活動因子+IF(目標體重="保持",0,IF(目標體重="減少",-500,IF(目標體重="增加",500))),""),"") -> 1675 | H93: =IFERROR(F93*(活動因子),"") -> 2174 | I93: 499 | J93: 11579 | K93: =IFERROR(IF(標準,J93/每磅卡路里,J93/每磅卡路里/2.2),"") -> 3.3 | L93: =IFERROR(減肥減重-K93,"") -> 11.69 | M93: =IFERROR(IF(B92<>"",L93/(減肥減重),""),"") -> 78%
B94: 2022-11-05 | D94: 84 | E94: 138.2 | F94: =IFERROR(跑步BMR,"") -> 1402 | G94: =IFERROR(IF(K93>0,F93*活動因子+IF(目標體重="保持",0,IF(目標體重="減少",-500,IF(目標體重="增加",500))),""),"") -> 1674 | H94: =IFERROR(F94*(活動因子),"") -> 2173 | I94: 499 | J94: 11080 | K94: =IFERROR(IF(標準,J94/每磅卡路里,J94/每磅卡路里/2.2),"") -> 3.2 | L94: =IFERROR(減肥減重-K94,"") -> 11.83 | M94: =IFERROR(IF(B93<>"",L94/(減肥減重),""),"") -> 79%
B95: 2022-11-06 | C95: 13 | D95: 85 | E95: 138.0 | F95: =IFERROR(跑步BMR,"") -> 1401 | G95: =IFERROR(IF(K94>0,F94*活動因子+IF(目標體重="保持",0,IF(目標體重="減少",-500,IF(目標體重="增加",500))),""),"") -> 1673 | H95: =IFERROR(F95*(活動因子),"") -> 2172 | I95: 499 | J95: 10581 | K95: =IFERROR(IF(標準,J95/每磅卡路里,J95/每磅卡路里/2.2),"") -> 3.0 | L95: =IFERROR(減肥減重-K95,"") -> 11.98 | M95: =IFERROR(IF(B94<>"",L95/(減肥減重),""),"") -> 80%
B96: 2022-11-07 | D96: 86 | E96: 137.9 | F96: =IFERROR(跑步BMR,"") -> 1400 | G96: =IFERROR(IF(K95>0,F95*活動因子+IF(目標體重="保持",0,IF(目標體重="減少",-500,IF(目標體重="增加",500))),""),"") -> 1672 | H96: =IFERROR(F96*(活動因子),"") -> 2171 | I96: 499 | J96: 10082 | K96: =IFERROR(IF(標準,J96/每磅卡路里,J96/每磅卡路里/2.2),"") -> 2.9 | L96: =IFERROR(減肥減重-K96,"") -> 12.12 | M96: =IFERROR(IF(B95<>"",L96/(減肥減重),""),"") -> 81%
B97: 2022-11-08 | D97: 87 | E97: 137.7 | F97: =IFERROR(跑步BMR,"") -> 1400 | G97: =IFERROR(IF(K96>0,F96*活動因子+IF(目標體重="保持",0,IF(目標體重="減少",-500,IF(目標體重="增加",500))),""),"") -> 1671 | H97: =IFERROR(F97*(活動因子),"") -> 2170 | I97: 499 | J97: 9583 | K97: =IFERROR(IF(標準,J97/每磅卡路里,J97/每磅卡路里/2.2),"") -> 2.7 | L97: =IFERROR(減肥減重-K97,"") -> 12.26 | M97: =IFERROR(IF(B96<>"",L97/(減肥減重),""),"") -> 82%
B98: 2022-11-09 | D98: 88 | E98: 137.6 | F98: =IFERROR(跑步BMR,"") -> 1399 | G98: =IFERROR(IF(K97>0,F97*活動因子+IF(目標體重="保持",0,IF(目標體重="減少",-500,IF(目標體重="增加",500))),""),"") -> 1670 | H98: =IFERROR(F98*(活動因子),"") -> 2169 | I98: 499 | J98: 9084 | K98: =IFERROR(IF(標準,J98/每磅卡路里,J98/每磅卡路里/2.2),"") -> 2.6 | L98: =IFERROR(減肥減重-K98,"") -> 12.40 | M98: =IFERROR(IF(B97<>"",L98/(減肥減重),""),"") -> 83%
B99: 2022-11-10 | D99: 89 | E99: 137.5 | F99: =IFERROR(跑步BMR,"") -> 1399 | G99: =IFERROR(IF(K98>0,F98*活動因子+IF(目標體重="保持",0,IF(目標體重="減少",-500,IF(目標體重="增加",500))),""),"") -> 1669 | H99: =IFERROR(F99*(活動因子),"") -> 2168 | I99: 499 | J99: 8585 | K99: =IFERROR(IF(標準,J99/每磅卡路里,J99/每磅卡路里/2.2),"") -> 2.5 | L99: =IFERROR(減肥減重-K99,"") -> 12.55 | M99: =IFERROR(IF(B98<>"",L99/(減肥減重),""),"") -> 84%
B100: 2022-11-11 | D100: 90 | E100: 137.3 | F100: =IFERROR(跑步BMR,"") -> 1398 | G100: =IFERROR(IF(K99>0,F99*活動因子+IF(目標體重="保持",0,IF(目標體重="減少",-500,IF(目標體重="增加",500))),""),"") -> 1668 | H100: =IFERROR(F100*(活動因子),"") -> 2167 | I100: 499 | J100: 8086 | K100: =IFERROR(IF(標準,J100/每磅卡路里,J100/每磅卡路里/2.2),"") -> 2.3 | L100: =IFERROR(減肥減重-K100,"") -> 12.69 | M100: =IFERROR(IF(B99<>"",L100/(減肥減重),""),"") -> 85%
B101: 2022-11-12 | D101: 91 | E101: 137.2 | F101: =IFERROR(跑步BMR,"") -> 1397 | G101: =IFERROR(IF(K100>0,F100*活動因子+IF(目標體重="保持",0,IF(目標體重="減少",-500,IF(目標體重="增加",500))),""),"") -> 1667 | H101: =IFERROR(F101*(活動因子),"") -> 2166 | I101: 499 | J101: 7587 | K101: =IFERROR(IF(標準,J101/每磅卡路里,J101/每磅卡路里/2.2),"") -> 2.2 | L101: =IFERROR(減肥減重-K101,"") -> 12.83 | M101: =IFERROR(IF(B100<>"",L101/(減肥減重),""),"") -> 86%
B102: 2022-11-13 | C102: 14 | D102: 92 | E102: 137.0 | F102: =IFERROR(跑步BMR,"") -> 1397 | G102: =IFERROR(IF(K101>0,F101*活動因子+IF(目標體重="保持",0,IF(目標體重="減少",-500,IF(目標體重="增加",500))),""),"") -> 1666 | H102: =IFERROR(F102*(活動因子),"") -> 2165 | I102: 499 | J102: 7087 | K102: =IFERROR(IF(標準,J102/每磅卡路里,J102/每磅卡路里/2.2),"") -> 2.0 | L102: =IFERROR(減肥減重-K102,"") -> 12.98 | M102: =IFERROR(IF(B101<>"",L102/(減肥減重),""),"") -> 87%
B103: 2022-11-14 | D103: 93 | E103: 136.9 | F103: =IFERROR(跑步BMR,"") -> 1396 | G103: =IFERROR(IF(K102>0,F102*活動因子+IF(目標體重="保持",0,IF(目標體重="減少",-500,IF(目標體重="增加",500))),""),"") -> 1665 | H103: =IFERROR(F103*(活動因子),"") -> 2164 | I103: 499 | J103: 6588 | K103: =IFERROR(IF(標準,J103/每磅卡路里,J103/每磅卡路里/2.2),"") -> 1.9 | L103: =IFERROR(減肥減重-K103,"") -> 13.12 | M103: =IFERROR(IF(B102<>"",L103/(減肥減重),""),"") -> 87%
B104: 2022-11-15 | D104: 94 | E104: 136.7 | F104: =IFERROR(跑步BMR,"") -> 1396 | G104: =IFERROR(IF(K103>0,F103*活動因子+IF(目標體重="保持",0,IF(目標體重="減少",-500,IF(目標體重="增加",500))),""),"") -> 1664 | H104: =IFERROR(F104*(活動因子),"") -> 2163 | I104: 499 | J104: 6089 | K104: =IFERROR(IF(標準,J104/每磅卡路里,J104/每磅卡路里/2.2),"") -> 1.7 | L104: =IFERROR(減肥減重-K104,"") -> 13.26 | M104: =IFERROR(IF(B103<>"",L104/(減肥減重),""),"") -> 88%
B105: 2022-11-16 | D105: 95 | E105: 136.6 | F105: =IFERROR(跑步BMR,"") -> 1395 | G105: =IFERROR(IF(K104>0,F104*活動因子+IF(目標體重="保持",0,IF(目標體重="減少",-500,IF(目標體重="增加",500))),""),"") -> 1663 | H105: =IFERROR(F105*(活動因子),"") -> 2162 | I105: 499 | J105: 5590 | K105: =IFERROR(IF(標準,J105/每磅卡路里,J105/每磅卡路里/2.2),"") -> 1.6 | L105: =IFERROR(減肥減重-K105,"") -> 13.40 | M105: =IFERROR(IF(B104<>"",L105/(減肥減重),""),"") -> 89%
B106: 2022-11-17 | D106: 96 | E106: 136.5 | F106: =IFERROR(跑步BMR,"") -> 1394 | G106: =IFERROR(IF(K105>0,F105*活動因子+IF(目標體重="保持",0,IF(目標體重="減少",-500,IF(目標體重="增加",500))),""),"") -> 1662 | H106: =IFERROR(F106*(活動因子),"") -> 2161 | I106: 499 | J106: 5091 | K106: =IFERROR(IF(標準,J106/每磅卡路里,J106/每磅卡路里/2.2),"") -> 1.5 | L106: =IFERROR(減肥減重-K106,"") -> 13.55 | M106: =IFERROR(IF(B105<>"",L106/(減肥減重),""),"") -> 90%
B107: 2022-11-18 | D107: 97 | E107: 136.3 | F107: =IFERROR(跑步BMR,"") -> 1394 | G107: =IFERROR(IF(K106>0,F106*活動因子+IF(目標體重="保持",0,IF(目標體重="減少",-500,IF(目標體重="增加",500))),""),"") -> 1661 | H107: =IFERROR(F107*(活動因子),"") -> 2160 | I107: 499 | J107: 4592 | K107: =IFERROR(IF(標準,J107/每磅卡路里,J107/每磅卡路里/2.2),"") -> 1.3 | L107: =IFERROR(減肥減重-K107,"") -> 13.69 | M107: =IFERROR(IF(B106<>"",L107/(減肥減重),""),"") -> 91%
B108: 2022-11-19 | D108: 98 | E108: 136.2 | F108: =IFERROR(跑步BMR,"") -> 1393 | G108: =IFERROR(IF(K107>0,F107*活動因子+IF(目標體重="保持",0,IF(目標體重="減少",-500,IF(目標體重="增加",500))),""),"") -> 1660 | H108: =IFERROR(F108*(活動因子),"") -> 2159 | I108: 499 | J108: 4093 | K108: =IFERROR(IF(標準,J108/每磅卡路里,J108/每磅卡路里/2.2),"") -> 1.2 | L108: =IFERROR(減肥減重-K108,"") -> 13.83 | M108: =IFERROR(IF(B107<>"",L108/(減肥減重),""),"") -> 92%
B109: 2022-11-20 | C109: 15 | D109: 99 | E109: 136.0 | F109: =IFERROR(跑步BMR,"") -> 1392 | G109: =IFERROR(IF(K108>0,F108*活動因子+IF(目標體重="保持",0,IF(目標體重="減少",-500,IF(目標體重="增加",500))),""),"") -> 1659 | H109: =IFERROR(F109*(活動因子),"") -> 2158 | I109: 499 | J109: 3594 | K109: =IFERROR(IF(標準,J109/每磅卡路里,J109/每磅卡路里/2.2),"") -> 1.0 | L109: =IFERROR(減肥減重-K109,"") -> 13.97 | M109: =IFERROR(IF(B108<>"",L109/(減肥減重),""),"") -> 93%
B110: 2022-11-21 | D110: 100 | E110: 135.9 | F110: =IFERROR(跑步BMR,"") -> 1392 | G110: =IFERROR(IF(K109>0,F109*活動因子+IF(目標體重="保持",0,IF(目標體重="減少",-500,IF(目標體重="增加",500))),""),"") -> 1658 | H110: =IFERROR(F110*(活動因子),"") -> 2157 | I110: 499 | J110: 3095 | K110: =IFERROR(IF(標準,J110/每磅卡路里,J110/每磅卡路里/2.2),"") -> 0.9 | L110: =IFERROR(減肥減重-K110,"") -> 14.12 | M110: =IFERROR(IF(B109<>"",L110/(減肥減重),""),"") -> 94%
B111: 2022-11-22 | D111: 101 | E111: 135.7 | F111: =IFERROR(跑步BMR,"") -> 1391 | G111: =IFERROR(IF(K110>0,F110*活動因子+IF(目標體重="保持",0,IF(目標體重="減少",-500,IF(目標體重="增加",500))),""),"") -> 1657 | H111: =IFERROR(F111*(活動因子),"") -> 2156 | I111: 499 | J111: 2596 | K111: =IFERROR(IF(標準,J111/每磅卡路里,J111/每磅卡路里/2.2),"") -> 0.7 | L111: =IFERROR(減肥減重-K111,"") -> 14.26 | M111: =IFERROR(IF(B110<>"",L111/(減肥減重),""),"") -> 95%
B112: 2022-11-23 | D112: 102 | E112: 135.6 | F112: =IFERROR(跑步BMR,"") -> 1391 | G112: =IFERROR(IF(K111>0,F111*活動因子+IF(目標體重="保持",0,IF(目標體重="減少",-500,IF(目標體重="增加",500))),""),"") -> 1656 | H112: =IFERROR(F112*(活動因子),"") -> 2155 | I112: 499 | J112: 2097 | K112: =IFERROR(IF(標準,J112/每磅卡路里,J112/每磅卡路里/2.2),"") -> 0.6 | L112: =IFERROR(減肥減重-K112,"") -> 14.40 | M112: =IFERROR(IF(B111<>"",L112/(減肥減重),""),"") -> 96%
B113: 2022-11-24 | D113: 103 | E113: 135.5 | F113: =IFERROR(跑步BMR,"") -> 1390 | G113: =IFERROR(IF(K112>0,F112*活動因子+IF(目標體重="保持",0,IF(目標體重="減少",-500,IF(目標體重="增加",500))),""),"") -> 1655 | H113: =IFERROR(F113*(活動因子),"") -> 2154 | I113: 499 | J113: 1598 | K113: =IFERROR(IF(標準,J113/每磅卡路里,J113/每磅卡路里/2.2),"") -> 0.5 | L113: =IFERROR(減肥減重-K113,"") -> 14.54 | M113: =IFERROR(IF(B112<>"",L113/(減肥減重),""),"") -> 97%
B114: 2022-11-25 | D114: 104 | E114: 135.3 | F114: =IFERROR(跑步BMR,"") -> 1389 | G114: =IFERROR(IF(K113>0,F113*活動因子+IF(目標體重="保持",0,IF(目標體重="減少",-500,IF(目標體重="增加",500))),""),"") -> 1654 | H114: =IFERROR(F114*(活動因子),"") -> 2153 | I114: 499 | J114: 1099 | K114: =IFERROR(IF(標準,J114/每磅卡路里,J114/每磅卡路里/2.2),"") -> 0.3 | L114: =IFERROR(減肥減重-K114,"") -> 14.69 | M114: =IFERROR(IF(B113<>"",L114/(減肥減重),""),"") -> 98%
B115: 2022-11-26 | D115: 105 | E115: 135.2 | F115: =IFERROR(跑步BMR,"") -> 1389 | G115: =IFERROR(IF(K114>0,F114*活動因子+IF(目標體重="保持",0,IF(目標體重="減少",-500,IF(目標體重="增加",500))),""),"") -> 1653 | H115: =IFERROR(F115*(活動因子),"") -> 2152 | I115: 499 | J115: 600 | K115: =IFERROR(IF(標準,J115/每磅卡路里,J115/每磅卡路里/2.2),"") -> 0.2 | L115: =IFERROR(減肥減重-K115,"") -> 14.83 | M115: =IFERROR(IF(B114<>"",L115/(減肥減重),""),"") -> 99%
B116: 2022-11-27 | C116: 16 | D116: 106 | E116: 135.0 | F116: =IFERROR(跑步BMR,"") -> 1388 | G116: =IFERROR(IF(K115>0,F115*活動因子+IF(目標體重="保持",0,IF(目標體重="減少",-500,IF(目標體重="增加",500))),""),"") -> 1652 | H116: =IFERROR(F116*(活動因子),"") -> 2152 | I116: 499 | J116: 101 | K116: =IFERROR(IF(標準,J116/每磅卡路里,J116/每磅卡路里/2.2),"") -> 0.0 | L116: =IFERROR(減肥減重-K116,"") -> 14.97 | M116: =IFERROR(IF(B115<>"",L116/(減肥減重),""),"") -> 100%
B117: 2022-11-28 | D117: 107 | E117: 134.9 | F117: =IFERROR(跑步BMR,"") -> 1387 | G117: =IFERROR(IF(K116>0,F116*活動因子+IF(目標體重="保持",0,IF(目標體重="減少",-500,IF(目標體重="增加",500))),""),"") -> 1652 | H117: =IFERROR(F117*(活動因子),"") -> 2151 | I117: 499 | J117: -398 | K117: =IFERROR(IF(標準,J117/每磅卡路里,J117/每磅卡路里/2.2),"") -> -0.1 | L117: =IFERROR(減肥減重-K117,"") -> 15.11 | M117: =IFERROR(IF(B116<>"",L117/(減肥減重),""),"") -> 101%
F118: =IFERROR(跑步BMR,"") ->  | G118: =IFERROR(IF(K117>0,F117*活動因子+IF(目標體重="保持",0,IF(目標體重="減少",-500,IF(目標體重="增加",500))),""),"") ->  | H118: =IFERROR(F118*(活動因子),"") ->  | K118: =IFERROR(IF(標準,J118/每磅卡路里,J118/每磅卡路里/2.2),"") ->  | L118: =IFERROR(減肥減重-K118,"") ->  | M118: =IFERROR(IF(B117<>"",L118/(減肥減重),""),"") -> 
F119: =IFERROR(跑步BMR,"") ->  | G119: =IFERROR(IF(K118>0,F118*活動因子+IF(目標體重="保持",0,IF(目標體重="減少",-500,IF(目標體重="增加",500))),""),"") ->  | H119: =IFERROR(F119*(活動因子),"") ->  | K119: =IFERROR(IF(標準,J119/每磅卡路里,J119/每磅卡路里/2.2),"") ->  | L119: =IFERROR(減肥減重-K119,"") ->  | M119: =IFERROR(IF(B118<>"",L119/(減肥減重),""),"") -> 
F120: =IFERROR(跑步BMR,"") ->  | G120: =IFERROR(IF(K119>0,F119*活動因子+IF(目標體重="保持",0,IF(目標體重="減少",-500,IF(目標體重="增加",500))),""),"") ->  | H120: =IFERROR(F120*(活動因子),"") ->  | K120: =IFERROR(IF(標準,J120/每磅卡路里,J120/每磅卡路里/2.2),"") ->  | L120: =IFERROR(減肥減重-K120,"") ->  | M120: =IFERROR(IF(B119<>"",L120/(減肥減重),""),"") -> 
F121: =IFERROR(跑步BMR,"") ->  | G121: =IFERROR(IF(K120>0,F120*活動因子+IF(目標體重="保持",0,IF(目標體重="減少",-500,IF(目標體重="增加",500))),""),"") ->  | H121: =IFERROR(F121*(活動因子),"") ->  | K121: =IFERROR(IF(標準,J121/每磅卡路里,J121/每磅卡路里/2.2),"") ->  | L121: =IFERROR(減肥減重-K121,"") ->  | M121: =IFERROR(IF(B120<>"",L121/(減肥減重),""),"") -> 
F122: =IFERROR(跑步BMR,"") ->  | G122: =IFERROR(IF(K121>0,F121*活動因子+IF(目標體重="保持",0,IF(目標體重="減少",-500,IF(目標體重="增加",500))),""),"") ->  | H122: =IFERROR(F122*(活動因子),"") ->  | K122: =IFERROR(IF(標準,J122/每磅卡路里,J122/每磅卡路里/2.2),"") ->  | L122: =IFERROR(減肥減重-K122,"") ->  | M122: =IFERROR(IF(B121<>"",L122/(減肥減重),""),"") -> 
F123: =IFERROR(跑步BMR,"") ->  | G123: =IFERROR(IF(K122>0,F122*活動因子+IF(目標體重="保持",0,IF(目標體重="減少",-500,IF(目標體重="增加",500))),""),"") ->  | H123: =IFERROR(F123*(活動因子),"") ->  | K123: =IFERROR(IF(標準,J123/每磅卡路里,J123/每磅卡路里/2.2),"") ->  | L123: =IFERROR(減肥減重-K123,"") ->  | M123: =IFERROR(IF(B122<>"",L123/(減肥減重),""),"") -> 
F124: =IFERROR(跑步BMR,"") ->  | G124: =IFERROR(IF(K123>0,F123*活動因子+IF(目標體重="保持",0,IF(目標體重="減少",-500,IF(目標體重="增加",500))),""),"") ->  | H124: =IFERROR(F124*(活動因子),"") ->  | K124: =IFERROR(IF(標準,J124/每磅卡路里,J124/每磅卡路里/2.2),"") ->  | L124: =IFERROR(減肥減重-K124,"") ->  | M124: =IFERROR(IF(B123<>"",L124/(減肥減重),""),"") -> 
F125: =IFERROR(跑步BMR,"") ->  | G125: =IFERROR(IF(K124>0,F124*活動因子+IF(目標體重="保持",0,IF(目標體重="減少",-500,IF(目標體重="增加",500))),""),"") ->  | H125: =IFERROR(F125*(活動因子),"") ->  | K125: =IFERROR(IF(標準,J125/每磅卡路里,J125/每磅卡路里/2.2),"") ->  | L125: =IFERROR(減肥減重-K125,"") ->  | M125: =IFERROR(IF(B124<>"",L125/(減肥減重),""),"") -> 
F126: =IFERROR(跑步BMR,"") ->  | G126: =IFERROR(IF(K125>0,F125*活動因子+IF(目標體重="保持",0,IF(目標體重="減少",-500,IF(目標體重="增加",500))),""),"") ->  | H126: =IFERROR(F126*(活動因子),"") ->  | K126: =IFERROR(IF(標準,J126/每磅卡路里,J126/每磅卡路里/2.2),"") ->  | L126: =IFERROR(減肥減重-K126,"") ->  | M126: =IFERROR(IF(B125<>"",L126/(減肥減重),""),"") -> 
F127: =IFERROR(跑步BMR,"") ->  | G127: =IFERROR(IF(K126>0,F126*活動因子+IF(目標體重="保持",0,IF(目標體重="減少",-500,IF(目標體重="增加",500))),""),"") ->  | H127: =IFERROR(F127*(活動因子),"") ->  | K127: =IFERROR(IF(標準,J127/每磅卡路里,J127/每磅卡路里/2.2),"") ->  | L127: =IFERROR(減肥減重-K127,"") ->  | M127: =IFERROR(IF(B126<>"",L127/(減肥減重),""),"") -> 
F128: =IFERROR(跑步BMR,"") ->  | G128: =IFERROR(IF(K127>0,F127*活動因子+IF(目標體重="保持",0,IF(目標體重="減少",-500,IF(目標體重="增加",500))),""),"") ->  | H128: =IFERROR(F128*(活動因子),"") ->  | K128: =IFERROR(IF(標準,J128/每磅卡路里,J128/每磅卡路里/2.2),"") ->  | L128: =IFERROR(減肥減重-K128,"") ->  | M128: =IFERROR(IF(B127<>"",L128/(減肥減重),""),"") -> 
F129: =IFERROR(跑步BMR,"") ->  | G129: =IFERROR(IF(K128>0,F128*活動因子+IF(目標體重="保持",0,IF(目標體重="減少",-500,IF(目標體重="增加",500))),""),"") ->  | H129: =IFERROR(F129*(活動因子),"") ->  | K129: =IFERROR(IF(標準,J129/每磅卡路里,J129/每磅卡路里/2.2),"") ->  | L129: =IFERROR(減肥減重-K129,"") ->  | M129: =IFERROR(IF(B128<>"",L129/(減肥減重),""),"") -> 
F130: =IFERROR(跑步BMR,"") ->  | G130: =IFERROR(IF(K129>0,F129*活動因子+IF(目標體重="保持",0,IF(目標體重="減少",-500,IF(目標體重="增加",500))),""),"") ->  | H130: =IFERROR(F130*(活動因子),"") ->  | K130: =IFERROR(IF(標準,J130/每磅卡路里,J130/每磅卡路里/2.2),"") ->  | L130: =IFERROR(減肥減重-K130,"") ->  | M130: =IFERROR(IF(B129<>"",L130/(減肥減重),""),"") -> 
F131: =IFERROR(跑步BMR,"") ->  | G131: =IFERROR(IF(K130>0,F130*活動因子+IF(目標體重="保持",0,IF(目標體重="減少",-500,IF(目標體重="增加",500))),""),"") ->  | H131: =IFERROR(F131*(活動因子),"") ->  | K131: =IFERROR(IF(標準,J131/每磅卡路里,J131/每磅卡路里/2.2),"") ->  | L131: =IFERROR(減肥減重-K131,"") ->  | M131: =IFERROR(IF(B130<>"",L131/(減肥減重),""),"") -> 
F132: =IFERROR(跑步BMR,"") ->  | G132: =IFERROR(IF(K131>0,F131*活動因子+IF(目標體重="保持",0,IF(目標體重="減少",-500,IF(目標體重="增加",500))),""),"") ->  | H132: =IFERROR(F132*(活動因子),"") ->  | K132: =IFERROR(IF(標準,J132/每磅卡路里,J132/每磅卡路里/2.2),"") ->  | L132: =IFERROR(減肥減重-K132,"") ->  | M132: =IFERROR(IF(B131<>"",L132/(減肥減重),""),"") -> 
F133: =IFERROR(跑步BMR,"") ->  | G133: =IFERROR(IF(K132>0,F132*活動因子+IF(目標體重="保持",0,IF(目標體重="減少",-500,IF(目標體重="增加",500))),""),"") ->  | H133: =IFERROR(F133*(活動因子),"") ->  | K133: =IFERROR(IF(標準,J133/每磅卡路里,J133/每磅卡路里/2.2),"") ->  | L133: =IFERROR(減肥減重-K133,"") ->  | M133: =IFERROR(IF(B132<>"",L133/(減肥減重),""),"") -> 
F134: =IFERROR(跑步BMR,"") ->  | G134: =IFERROR(IF(K133>0,F133*活動因子+IF(目標體重="保持",0,IF(目標體重="減少",-500,IF(目標體重="增加",500))),""),"") ->  | H134: =IFERROR(F134*(活動因子),"") ->  | K134: =IFERROR(IF(標準,J134/每磅卡路里,J134/每磅卡路里/2.2),"") ->  | L134: =IFERROR(減肥減重-K134,"") ->  | M134: =IFERROR(IF(B133<>"",L134/(減肥減重),""),"") -> 
F135: =IFERROR(跑步BMR,"") ->  | G135: =IFERROR(IF(K134>0,F134*活動因子+IF(目標體重="保持",0,IF(目標體重="減少",-500,IF(目標體重="增加",500))),""),"") ->  | H135: =IFERROR(F135*(活動因子),"") ->  | K135: =IFERROR(IF(標準,J135/每磅卡路里,J135/每磅卡路里/2.2),"") ->  | L135: =IFERROR(減肥減重-K135,"") ->  | M135: =IFERROR(IF(B134<>"",L135/(減肥減重),""),"") -> 
F136: =IFERROR(跑步BMR,"") ->  | G136: =IFERROR(IF(K135>0,F135*活動因子+IF(目標體重="保持",0,IF(目標體重="減少",-500,IF(目標體重="增加",500))),""),"") ->  | H136: =IFERROR(F136*(活動因子),"") ->  | K136: =IFERROR(IF(標準,J136/每磅卡路里,J136/每磅卡路里/2.2),"") ->  | L136: =IFERROR(減肥減重-K136,"") ->  | M136: =IFERROR(IF(B135<>"",L136/(減肥減重),""),"") -> 
F137: =IFERROR(跑步BMR,"") ->  | G137: =IFERROR(IF(K136>0,F136*活動因子+IF(目標體重="保持",0,IF(目標體重="減少",-500,IF(目標體重="增加",500))),""),"") ->  | H137: =IFERROR(F137*(活動因子),"") ->  | K137: =IFERROR(IF(標準,J137/每磅卡路里,J137/每磅卡路里/2.2),"") ->  | L137: =IFERROR(減肥減重-K137,"") ->  | M137: =IFERROR(IF(B136<>"",L137/(減肥減重),""),"") -> 
F138: =IFERROR(跑步BMR,"") ->  | G138: =IFERROR(IF(K137>0,F137*活動因子+IF(目標體重="保持",0,IF(目標體重="減少",-500,IF(目標體重="增加",500))),""),"") ->  | H138: =IFERROR(F138*(活動因子),"") ->  | K138: =IFERROR(IF(標準,J138/每磅卡路里,J138/每磅卡路里/2.2),"") ->  | L138: =IFERROR(減肥減重-K138,"") ->  | M138: =IFERROR(IF(B137<>"",L138/(減肥減重),""),"") -> 
F139: =IFERROR(跑步BMR,"") ->  | G139: =IFERROR(IF(K138>0,F138*活動因子+IF(目標體重="保持",0,IF(目標體重="減少",-500,IF(目標體重="增加",500))),""),"") ->  | H139: =IFERROR(F139*(活動因子),"") ->  | I139: =IFERROR(IF(目標體重="增加",G139-H139,H139-G139),"") ->  | K139: =IFERROR(IF(標準,J139/每磅卡路里,J139/每磅卡路里/2.2),"") ->  | L139: =IFERROR(減肥減重-K139,"") ->  | M139: =IFERROR(IF(B138<>"",L139/(減肥減重),""),"") -> 
B140: =IFERROR(IF(K139>0,B139+1,""),"") ->  | D140: =IFERROR(IF(K139>0,D139+1,""),"") ->  | E140: =IFERROR(IF($D140<>"",E139-(I139/每磅卡路里),""),"") ->  | F140: =IFERROR(跑步BMR,"") ->  | G140: =IFERROR(IF(K139>0,F139*活動因子+IF(目標體重="保持",0,IF(目標體重="減少",-500,IF(目標體重="增加",500))),""),"") ->  | H140: =IFERROR(F140*(活動因子),"") ->  | K140: =IFERROR(IF(標準,J140/每磅卡路里,J140/每磅卡路里/2.2),"") ->  | L140: =IFERROR(減肥減重-K140,"") ->  | M140: =IFERROR(IF(B139<>"",L140/(減肥減重),""),"") -> 
C141: =IFERROR(IF(D141<>"",IF(MOD(D141,7)=1,(D140/7)+1,""),""),"") ->  | F141: =IFERROR(跑步BMR,"") ->  | G141: =IFERROR(IF(K140>0,F140*活動因子+IF(目標體重="保持",0,IF(目標體重="減少",-500,IF(目標體重="增加",500))),""),"") ->  | H141: =IFERROR(F141*(活動因子),"") ->  | J141: =IFERROR(J140-I141,"") ->  | K141: =IFERROR(IF(標準,J141/每磅卡路里,J141/每磅卡路里/2.2),"") ->  | L141: =IFERROR(減肥減重-K141,"") ->  | M141: =IFERROR(IF(B140<>"",L141/(減肥減重),""),"") -> 
F142: =IFERROR(跑步BMR,"") ->  | G142: =IFERROR(IF(K141>0,F141*活動因子+IF(目標體重="保持",0,IF(目標體重="減少",-500,IF(目標體重="增加",500))),""),"") ->  | H142: =IFERROR(F142*(活動因子),"") ->  | K142: =IFERROR(IF(標準,J142/每磅卡路里,J142/每磅卡路里/2.2),"") ->  | L142: =IFERROR(減肥減重-K142,"") ->  | M142: =IFERROR(IF(B141<>"",L142/(減肥減重),""),"") -> 
F143: =IFERROR(跑步BMR,"") ->  | G143: =IFERROR(IF(K142>0,F142*活動因子+IF(目標體重="保持",0,IF(目標體重="減少",-500,IF(目標體重="增加",500))),""),"") ->  | H143: =IFERROR(F143*(活動因子),"") ->  | K143: =IFERROR(IF(標準,J143/每磅卡路里,J143/每磅卡路里/2.2),"") ->  | L143: =IFERROR(減肥減重-K143,"") ->  | M143: =IFERROR(IF(B142<>"",L143/(減肥減重),""),"") -> 
F144: =IFERROR(跑步BMR,"") ->  | G144: =IFERROR(IF(K143>0,F143*活動因子+IF(目標體重="保持",0,IF(目標體重="減少",-500,IF(目標體重="增加",500))),""),"") ->  | H144: =IFERROR(F144*(活動因子),"") ->  | K144: =IFERROR(IF(標準,J144/每磅卡路里,J144/每磅卡路里/2.2),"") ->  | L144: =IFERROR(減肥減重-K144,"") ->  | M144: =IFERROR(IF(B143<>"",L144/(減肥減重),""),"") -> 
F145: =IFERROR(跑步BMR,"") ->  | G145: =IFERROR(IF(K144>0,F144*活動因子+IF(目標體重="保持",0,IF(目標體重="減少",-500,IF(目標體重="增加",500))),""),"") ->  | H145: =IFERROR(F145*(活動因子),"") ->  | K145: =IFERROR(IF(標準,J145/每磅卡路里,J145/每磅卡路里/2.2),"") ->  | L145: =IFERROR(減肥減重-K145,"") ->  | M145: =IFERROR(IF(B144<>"",L145/(減肥減重),""),"") -> 
F146: =IFERROR(跑步BMR,"") ->  | G146: =IFERROR(IF(K145>0,F145*活動因子+IF(目標體重="保持",0,IF(目標體重="減少",-500,IF(目標體重="增加",500))),""),"") ->  | H146: =IFERROR(F146*(活動因子),"") ->  | K146: =IFERROR(IF(標準,J146/每磅卡路里,J146/每磅卡路里/2.2),"") ->  | L146: =IFERROR(減肥減重-K146,"") ->  | M146: =IFERROR(IF(B145<>"",L146/(減肥減重),""),"") -> 
F147: =IFERROR(跑步BMR,"") ->  | G147: =IFERROR(IF(K146>0,F146*活動因子+IF(目標體重="保持",0,IF(目標體重="減少",-500,IF(目標體重="增加",500))),""),"") ->  | H147: =IFERROR(F147*(活動因子),"") ->  | K147: =IFERROR(IF(標準,J147/每磅卡路里,J147/每磅卡路里/2.2),"") ->  | L147: =IFERROR(減肥減重-K147,"") ->  | M147: =IFERROR(IF(B146<>"",L147/(減肥減重),""),"") -> 
F148: =IFERROR(跑步BMR,"") ->  | G148: =IFERROR(IF(K147>0,F147*活動因子+IF(目標體重="保持",0,IF(目標體重="減少",-500,IF(目標體重="增加",500))),""),"") ->  | H148: =IFERROR(F148*(活動因子),"") ->  | K148: =IFERROR(IF(標準,J148/每磅卡路里,J148/每磅卡路里/2.2),"") ->  | L148: =IFERROR(減肥減重-K148,"") ->  | M148: =IFERROR(IF(B147<>"",L148/(減肥減重),""),"") -> 
F149: =IFERROR(跑步BMR,"") ->  | G149: =IFERROR(IF(K148>0,F148*活動因子+IF(目標體重="保持",0,IF(目標體重="減少",-500,IF(目標體重="增加",500))),""),"") ->  | H149: =IFERROR(F149*(活動因子),"") ->  | K149: =IFERROR(IF(標準,J149/每磅卡路里,J149/每磅卡路里/2.2),"") ->  | L149: =IFERROR(減肥減重-K149,"") ->  | M149: =IFERROR(IF(B148<>"",L149/(減肥減重),""),"") -> 
F150: =IFERROR(跑步BMR,"") ->  | G150: =IFERROR(IF(K149>0,F149*活動因子+IF(目標體重="保持",0,IF(目標體重="減少",-500,IF(目標體重="增加",500))),""),"") ->  | H150: =IFERROR(F150*(活動因子),"") ->  | K150: =IFERROR(IF(標準,J150/每磅卡路里,J150/每磅卡路里/2.2),"") ->  | L150: =IFERROR(減肥減重-K150,"") ->  | M150: =IFERROR(IF(B149<>"",L150/(減肥減重),""),"") -> 
F151: =IFERROR(跑步BMR,"") ->  | G151: =IFERROR(IF(K150>0,F150*活動因子+IF(目標體重="保持",0,IF(目標體重="減少",-500,IF(目標體重="增加",500))),""),"") ->  | H151: =IFERROR(F151*(活動因子),"") ->  | K151: =IFERROR(IF(標準,J151/每磅卡路里,J151/每磅卡路里/2.2),"") ->  | L151: =IFERROR(減肥減重-K151,"") ->  | M151: =IFERROR(IF(B150<>"",L151/(減肥減重),""),"") -> 
F152: =IFERROR(跑步BMR,"") ->  | G152: =IFERROR(IF(K151>0,F151*活動因子+IF(目標體重="保持",0,IF(目標體重="減少",-500,IF(目標體重="增加",500))),""),"") ->  | H152: =IFERROR(F152*(活動因子),"") ->  | K152: =IFERROR(IF(標準,J152/每磅卡路里,J152/每磅卡路里/2.2),"") ->  | L152: =IFERROR(減肥減重-K152,"") ->  | M152: =IFERROR(IF(B151<>"",L152/(減肥減重),""),"") -> 
F153: =IFERROR(跑步BMR,"") ->  | G153: =IFERROR(IF(K152>0,F152*活動因子+IF(目標體重="保持",0,IF(目標體重="減少",-500,IF(目標體重="增加",500))),""),"") ->  | H153: =IFERROR(F153*(活動因子),"") ->  | K153: =IFERROR(IF(標準,J153/每磅卡路里,J153/每磅卡路里/2.2),"") ->  | L153: =IFERROR(減肥減重-K153,"") ->  | M153: =IFERROR(IF(B152<>"",L153/(減肥減重),""),"") -> 
F154: =IFERROR(跑步BMR,"") ->  | G154: =IFERROR(IF(K153>0,F153*活動因子+IF(目標體重="保持",0,IF(目標體重="減少",-500,IF(目標體重="增加",500))),""),"") ->  | H154: =IFERROR(F154*(活動因子),"") ->  | K154: =IFERROR(IF(標準,J154/每磅卡路里,J154/每磅卡路里/2.2),"") ->  | L154: =IFERROR(減肥減重-K154,"") ->  | M154: =IFERROR(IF(B153<>"",L154/(減肥減重),""),"") -> 
F155: =IFERROR(跑步BMR,"") ->  | G155: =IFERROR(IF(K154>0,F154*活動因子+IF(目標體重="保持",0,IF(目標體重="減少",-500,IF(目標體重="增加",500))),""),"") ->  | H155: =IFERROR(F155*(活動因子),"") ->  | K155: =IFERROR(IF(標準,J155/每磅卡路里,J155/每磅卡路里/2.2),"") ->  | L155: =IFERROR(減肥減重-K155,"") ->  | M155: =IFERROR(IF(B154<>"",L155/(減肥減重),""),"") -> 
F156: =IFERROR(跑步BMR,"") ->  | G156: =IFERROR(IF(K155>0,F155*活動因子+IF(目標體重="保持",0,IF(目標體重="減少",-500,IF(目標體重="增加",500))),""),"") ->  | H156: =IFERROR(F156*(活動因子),"") ->  | K156: =IFERROR(IF(標準,J156/每磅卡路里,J156/每磅卡路里/2.2),"") ->  | L156: =IFERROR(減肥減重-K156,"") ->  | M156: =IFERROR(IF(B155<>"",L156/(減肥減重),""),"") -> 
F157: =IFERROR(跑步BMR,"") ->  | G157: =IFERROR(IF(K156>0,F156*活動因子+IF(目標體重="保持",0,IF(目標體重="減少",-500,IF(目標體重="增加",500))),""),"") ->  | H157: =IFERROR(F157*(活動因子),"") ->  | K157: =IFERROR(IF(標準,J157/每磅卡路里,J157/每磅卡路里/2.2),"") ->  | L157: =IFERROR(減肥減重-K157,"") ->  | M157: =IFERROR(IF(B156<>"",L157/(減肥減重),""),"") -> 
F158: =IFERROR(跑步BMR,"") ->  | G158: =IFERROR(IF(K157>0,F157*活動因子+IF(目標體重="保持",0,IF(目標體重="減少",-500,IF(目標體重="增加",500))),""),"") ->  | H158: =IFERROR(F158*(活動因子),"") ->  | K158: =IFERROR(IF(標準,J158/每磅卡路里,J158/每磅卡路里/2.2),"") ->  | L158: =IFERROR(減肥減重-K158,"") ->  | M158: =IFERROR(IF(B157<>"",L158/(減肥減重),""),"") -> 
F159: =IFERROR(跑步BMR,"") ->  | G159: =IFERROR(IF(K158>0,F158*活動因子+IF(目標體重="保持",0,IF(目標體重="減少",-500,IF(目標體重="增加",500))),""),"") ->  | H159: =IFERROR(F159*(活動因子),"") ->  | K159: =IFERROR(IF(標準,J159/每磅卡路里,J159/每磅卡路里/2.2),"") ->  | L159: =IFERROR(減肥減重-K159,"") ->  | M159: =IFERROR(IF(B158<>"",L159/(減肥減重),""),"") -> 
F160: =IFERROR(跑步BMR,"") ->  | G160: =IFERROR(IF(K159>0,F159*活動因子+IF(目標體重="保持",0,IF(目標體重="減少",-500,IF(目標體重="增加",500))),""),"") ->  | H160: =IFERROR(F160*(活動因子),"") ->  | K160: =IFERROR(IF(標準,J160/每磅卡路里,J160/每磅卡路里/2.2),"") ->  | L160: =IFERROR(減肥減重-K160,"") ->  | M160: =IFERROR(IF(B159<>"",L160/(減肥減重),""),"") -> 
F161: =IFERROR(跑步BMR,"") ->  | G161: =IFERROR(IF(K160>0,F160*活動因子+IF(目標體重="保持",0,IF(目標體重="減少",-500,IF(目標體重="增加",500))),""),"") ->  | H161: =IFERROR(F161*(活動因子),"") ->  | K161: =IFERROR(IF(標準,J161/每磅卡路里,J161/每磅卡路里/2.2),"") ->  | L161: =IFERROR(減肥減重-K161,"") ->  | M161: =IFERROR(IF(B160<>"",L161/(減肥減重),""),"") -> 
F162: =IFERROR(跑步BMR,"") ->  | G162: =IFERROR(IF(K161>0,F161*活動因子+IF(目標體重="保持",0,IF(目標體重="減少",-500,IF(目標體重="增加",500))),""),"") ->  | H162: =IFERROR(F162*(活動因子),"") ->  | K162: =IFERROR(IF(標準,J162/每磅卡路里,J162/每磅卡路里/2.2),"") ->  | L162: =IFERROR(減肥減重-K162,"") ->  | M162: =IFERROR(IF(B161<>"",L162/(減肥減重),""),"") -> 
F163: =IFERROR(跑步BMR,"") ->  | G163: =IFERROR(IF(K162>0,F162*活動因子+IF(目標體重="保持",0,IF(目標體重="減少",-500,IF(目標體重="增加",500))),""),"") ->  | H163: =IFERROR(F163*(活動因子),"") ->  | K163: =IFERROR(IF(標準,J163/每磅卡路里,J163/每磅卡路里/2.2),"") ->  | L163: =IFERROR(減肥減重-K163,"") ->  | M163: =IFERROR(IF(B162<>"",L163/(減肥減重),""),"") -> 
F164: =IFERROR(跑步BMR,"") ->  | G164: =IFERROR(IF(K163>0,F163*活動因子+IF(目標體重="保持",0,IF(目標體重="減少",-500,IF(目標體重="增加",500))),""),"") ->  | H164: =IFERROR(F164*(活動因子),"") ->  | K164: =IFERROR(IF(標準,J164/每磅卡路里,J164/每磅卡路里/2.2),"") ->  | L164: =IFERROR(減肥減重-K164,"") ->  | M164: =IFERROR(IF(B163<>"",L164/(減肥減重),""),"") -> 
F165: =IFERROR(跑步BMR,"") ->  | G165: =IFERROR(IF(K164>0,F164*活動因子+IF(目標體重="保持",0,IF(目標體重="減少",-500,IF(目標體重="增加",500))),""),"") ->  | H165: =IFERROR(F165*(活動因子),"") ->  | K165: =IFERROR(IF(標準,J165/每磅卡路里,J165/每磅卡路里/2.2),"") ->  | L165: =IFERROR(減肥減重-K165,"") ->  | M165: =IFERROR(IF(B164<>"",L165/(減肥減重),""),"") -> 
F166: =IFERROR(跑步BMR,"") ->  | G166: =IFERROR(IF(K165>0,F165*活動因子+IF(目標體重="保持",0,IF(目標體重="減少",-500,IF(目標體重="增加",500))),""),"") ->  | H166: =IFERROR(F166*(活動因子),"") ->  | K166: =IFERROR(IF(標準,J166/每磅卡路里,J166/每磅卡路里/2.2),"") ->  | L166: =IFERROR(減肥減重-K166,"") ->  | M166: =IFERROR(IF(B165<>"",L166/(減肥減重),""),"") -> 
F167: =IFERROR(跑步BMR,"") ->  | G167: =IFERROR(IF(K166>0,F166*活動因子+IF(目標體重="保持",0,IF(目標體重="減少",-500,IF(目標體重="增加",500))),""),"") ->  | H167: =IFERROR(F167*(活動因子),"") ->  | K167: =IFERROR(IF(標準,J167/每磅卡路里,J167/每磅卡路里/2.2),"") ->  | L167: =IFERROR(減肥減重-K167,"") ->  | M167: =IFERROR(IF(B166<>"",L167/(減肥減重),""),"") -> 
F168: =IFERROR(跑步BMR,"") ->  | G168: =IFERROR(IF(K167>0,F167*活動因子+IF(目標體重="保持",0,IF(目標體重="減少",-500,IF(目標體重="增加",500))),""),"") ->  | H168: =IFERROR(F168*(活動因子),"") ->  | K168: =IFERROR(IF(標準,J168/每磅卡路里,J168/每磅卡路里/2.2),"") ->  | L168: =IFERROR(減肥減重-K168,"") ->  | M168: =IFERROR(IF(B167<>"",L168/(減肥減重),""),"") -> 
F169: =IFERROR(跑步BMR,"") ->  | G169: =IFERROR(IF(K168>0,F168*活動因子+IF(目標體重="保持",0,IF(目標體重="減少",-500,IF(目標體重="增加",500))),""),"") ->  | H169: =IFERROR(F169*(活動因子),"") ->  | K169: =IFERROR(IF(標準,J169/每磅卡路里,J169/每磅卡路里/2.2),"") ->  | L169: =IFERROR(減肥減重-K169,"") ->  | M169: =IFERROR(IF(B168<>"",L169/(減肥減重),""),"") -> 
F170: =IFERROR(跑步BMR,"") ->  | G170: =IFERROR(IF(K169>0,F169*活動因子+IF(目標體重="保持",0,IF(目標體重="減少",-500,IF(目標體重="增加",500))),""),"") ->  | H170: =IFERROR(F170*(活動因子),"") ->  | K170: =IFERROR(IF(標準,J170/每磅卡路里,J170/每磅卡路里/2.2),"") ->  | L170: =IFERROR(減肥減重-K170,"") ->  | M170: =IFERROR(IF(B169<>"",L170/(減肥減重),""),"") -> 
F171: =IFERROR(跑步BMR,"") ->  | G171: =IFERROR(IF(K170>0,F170*活動因子+IF(目標體重="保持",0,IF(目標體重="減少",-500,IF(目標體重="增加",500))),""),"") ->  | H171: =IFERROR(F171*(活動因子),"") ->  | K171: =IFERROR(IF(標準,J171/每磅卡路里,J171/每磅卡路里/2.2),"") ->  | L171: =IFERROR(減肥減重-K171,"") ->  | M171: =IFERROR(IF(B170<>"",L171/(減肥減重),""),"") -> 
F172: =IFERROR(跑步BMR,"") ->  | G172: =IFERROR(IF(K171>0,F171*活動因子+IF(目標體重="保持",0,IF(目標體重="減少",-500,IF(目標體重="增加",500))),""),"") ->  | H172: =IFERROR(F172*(活動因子),"") ->  | K172: =IFERROR(IF(標準,J172/每磅卡路里,J172/每磅卡路里/2.2),"") ->  | L172: =IFERROR(減肥減重-K172,"") ->  | M172: =IFERROR(IF(B171<>"",L172/(減肥減重),""),"") -> 
F173: =IFERROR(跑步BMR,"") ->  | G173: =IFERROR(IF(K172>0,F172*活動因子+IF(目標體重="保持",0,IF(目標體重="減少",-500,IF(目標體重="增加",500))),""),"") ->  | H173: =IFERROR(F173*(活動因子),"") ->  | K173: =IFERROR(IF(標準,J173/每磅卡路里,J173/每磅卡路里/2.2),"") ->  | L173: =IFERROR(減肥減重-K173,"") ->  | M173: =IFERROR(IF(B172<>"",L173/(減肥減重),""),"") -> 
F174: =IFERROR(跑步BMR,"") ->  | G174: =IFERROR(IF(K173>0,F173*活動因子+IF(目標體重="保持",0,IF(目標體重="減少",-500,IF(目標體重="增加",500))),""),"") ->  | H174: =IFERROR(F174*(活動因子),"") ->  | K174: =IFERROR(IF(標準,J174/每磅卡路里,J174/每磅卡路里/2.2),"") ->  | L174: =IFERROR(減肥減重-K174,"") ->  | M174: =IFERROR(IF(B173<>"",L174/(減肥減重),""),"") -> 
F175: =IFERROR(跑步BMR,"") ->  | G175: =IFERROR(IF(K174>0,F174*活動因子+IF(目標體重="保持",0,IF(目標體重="減少",-500,IF(目標體重="增加",500))),""),"") ->  | H175: =IFERROR(F175*(活動因子),"") ->  | K175: =IFERROR(IF(標準,J175/每磅卡路里,J175/每磅卡路里/2.2),"") ->  | L175: =IFERROR(減肥減重-K175,"") ->  | M175: =IFERROR(IF(B174<>"",L175/(減肥減重),""),"") -> 
F176: =IFERROR(跑步BMR,"") ->  | G176: =IFERROR(IF(K175>0,F175*活動因子+IF(目標體重="保持",0,IF(目標體重="減少",-500,IF(目標體重="增加",500))),""),"") ->  | H176: =IFERROR(F176*(活動因子),"") ->  | K176: =IFERROR(IF(標準,J176/每磅卡路里,J176/每磅卡路里/2.2),"") ->  | L176: =IFERROR(減肥減重-K176,"") ->  | M176: =IFERROR(IF(B175<>"",L176/(減肥減重),""),"") -> 
F177: =IFERROR(跑步BMR,"") ->  | G177: =IFERROR(IF(K176>0,F176*活動因子+IF(目標體重="保持",0,IF(目標體重="減少",-500,IF(目標體重="增加",500))),""),"") ->  | H177: =IFERROR(F177*(活動因子),"") ->  | K177: =IFERROR(IF(標準,J177/每磅卡路里,J177/每磅卡路里/2.2),"") ->  | L177: =IFERROR(減肥減重-K177,"") ->  | M177: =IFERROR(IF(B176<>"",L177/(減肥減重),""),"") -> 
F178: =IFERROR(跑步BMR,"") ->  | G178: =IFERROR(IF(K177>0,F177*活動因子+IF(目標體重="保持",0,IF(目標體重="減少",-500,IF(目標體重="增加",500))),""),"") ->  | H178: =IFERROR(F178*(活動因子),"") ->  | K178: =IFERROR(IF(標準,J178/每磅卡路里,J178/每磅卡路里/2.2),"") ->  | L178: =IFERROR(減肥減重-K178,"") ->  | M178: =IFERROR(IF(B177<>"",L178/(減肥減重),""),"") -> 
F179: =IFERROR(跑步BMR,"") ->  | G179: =IFERROR(IF(K178>0,F178*活動因子+IF(目標體重="保持",0,IF(目標體重="減少",-500,IF(目標體重="增加",500))),""),"") ->  | H179: =IFERROR(F179*(活動因子),"") ->  | K179: =IFERROR(IF(標準,J179/每磅卡路里,J179/每磅卡路里/2.2),"") ->  | L179: =IFERROR(減肥減重-K179,"") ->  | M179: =IFERROR(IF(B178<>"",L179/(減肥減重),""),"") -> 
F180: =IFERROR(跑步BMR,"") ->  | G180: =IFERROR(IF(K179>0,F179*活動因子+IF(目標體重="保持",0,IF(目標體重="減少",-500,IF(目標體重="增加",500))),""),"") ->  | H180: =IFERROR(F180*(活動因子),"") ->  | K180: =IFERROR(IF(標準,J180/每磅卡路里,J180/每磅卡路里/2.2),"") ->  | L180: =IFERROR(減肥減重-K180,"") ->  | M180: =IFERROR(IF(B179<>"",L180/(減肥減重),""),"") -> 
F181: =IFERROR(跑步BMR,"") ->  | G181: =IFERROR(IF(K180>0,F180*活動因子+IF(目標體重="保持",0,IF(目標體重="減少",-500,IF(目標體重="增加",500))),""),"") ->  | H181: =IFERROR(F181*(活動因子),"") ->  | K181: =IFERROR(IF(標準,J181/每磅卡路里,J181/每磅卡路里/2.2),"") ->  | L181: =IFERROR(減肥減重-K181,"") ->  | M181: =IFERROR(IF(B180<>"",L181/(減肥減重),""),"") -> 
F182: =IFERROR(跑步BMR,"") ->  | G182: =IFERROR(IF(K181>0,F181*活動因子+IF(目標體重="保持",0,IF(目標體重="減少",-500,IF(目標體重="增加",500))),""),"") ->  | H182: =IFERROR(F182*(活動因子),"") ->  | K182: =IFERROR(IF(標準,J182/每磅卡路里,J182/每磅卡路里/2.2),"") ->  | L182: =IFERROR(減肥減重-K182,"") ->  | M182: =IFERROR(IF(B181<>"",L182/(減肥減重),""),"") -> 
F183: =IFERROR(跑步BMR,"") ->  | G183: =IFERROR(IF(K182>0,F182*活動因子+IF(目標體重="保持",0,IF(目標體重="減少",-500,IF(目標體重="增加",500))),""),"") ->  | H183: =IFERROR(F183*(活動因子),"") ->  | K183: =IFERROR(IF(標準,J183/每磅卡路里,J183/每磅卡路里/2.2),"") ->  | L183: =IFERROR(減肥減重-K183,"") ->  | M183: =IFERROR(IF(B182<>"",L183/(減肥減重),""),"") -> 
F184: =IFERROR(跑步BMR,"") ->  | G184: =IFERROR(IF(K183>0,F183*活動因子+IF(目標體重="保持",0,IF(目標體重="減少",-500,IF(目標體重="增加",500))),""),"") ->  | H184: =IFERROR(F184*(活動因子),"") ->  | K184: =IFERROR(IF(標準,J184/每磅卡路里,J184/每磅卡路里/2.2),"") ->  | L184: =IFERROR(減肥減重-K184,"") ->  | M184: =IFERROR(IF(B183<>"",L184/(減肥減重),""),"") -> 
F185: =IFERROR(跑步BMR,"") ->  | G185: =IFERROR(IF(K184>0,F184*活動因子+IF(目標體重="保持",0,IF(目標體重="減少",-500,IF(目標體重="增加",500))),""),"") ->  | H185: =IFERROR(F185*(活動因子),"") ->  | K185: =IFERROR(IF(標準,J185/每磅卡路里,J185/每磅卡路里/2.2),"") ->  | L185: =IFERROR(減肥減重-K185,"") ->  | M185: =IFERROR(IF(B184<>"",L185/(減肥減重),""),"") -> 
F186: =IFERROR(跑步BMR,"") ->  | G186: =IFERROR(IF(K185>0,F185*活動因子+IF(目標體重="保持",0,IF(目標體重="減少",-500,IF(目標體重="增加",500))),""),"") ->  | H186: =IFERROR(F186*(活動因子),"") ->  | K186: =IFERROR(IF(標準,J186/每磅卡路里,J186/每磅卡路里/2.2),"") ->  | L186: =IFERROR(減肥減重-K186,"") ->  | M186: =IFERROR(IF(B185<>"",L186/(減肥減重),""),"") -> 
F187: =IFERROR(跑步BMR,"") ->  | G187: =IFERROR(IF(K186>0,F186*活動因子+IF(目標體重="保持",0,IF(目標體重="減少",-500,IF(目標體重="增加",500))),""),"") ->  | H187: =IFERROR(F187*(活動因子),"") ->  | K187: =IFERROR(IF(標準,J187/每磅卡路里,J187/每磅卡路里/2.2),"") ->  | L187: =IFERROR(減肥減重-K187,"") ->  | M187: =IFERROR(IF(B186<>"",L187/(減肥減重),""),"") -> 
F188: =IFERROR(跑步BMR,"") ->  | G188: =IFERROR(IF(K187>0,F187*活動因子+IF(目標體重="保持",0,IF(目標體重="減少",-500,IF(目標體重="增加",500))),""),"") ->  | H188: =IFERROR(F188*(活動因子),"") ->  | K188: =IFERROR(IF(標準,J188/每磅卡路里,J188/每磅卡路里/2.2),"") ->  | L188: =IFERROR(減肥減重-K188,"") ->  | M188: =IFERROR(IF(B187<>"",L188/(減肥減重),""),"") -> 
F189: =IFERROR(跑步BMR,"") ->  | G189: =IFERROR(IF(K188>0,F188*活動因子+IF(目標體重="保持",0,IF(目標體重="減少",-500,IF(目標體重="增加",500))),""),"") ->  | H189: =IFERROR(F189*(活動因子),"") ->  | K189: =IFERROR(IF(標準,J189/每磅卡路里,J189/每磅卡路里/2.2),"") ->  | L189: =IFERROR(減肥減重-K189,"") ->  | M189: =IFERROR(IF(B188<>"",L189/(減肥減重),""),"") -> 
F190: =IFERROR(跑步BMR,"") ->  | G190: =IFERROR(IF(K189>0,F189*活動因子+IF(目標體重="保持",0,IF(目標體重="減少",-500,IF(目標體重="增加",500))),""),"") ->  | H190: =IFERROR(F190*(活動因子),"") ->  | K190: =IFERROR(IF(標準,J190/每磅卡路里,J190/每磅卡路里/2.2),"") ->  | L190: =IFERROR(減肥減重-K190,"") ->  | M190: =IFERROR(IF(B189<>"",L190/(減肥減重),""),"") -> 
F191: =IFERROR(跑步BMR,"") ->  | G191: =IFERROR(IF(K190>0,F190*活動因子+IF(目標體重="保持",0,IF(目標體重="減少",-500,IF(目標體重="增加",500))),""),"") ->  | H191: =IFERROR(F191*(活動因子),"") ->  | K191: =IFERROR(IF(標準,J191/每磅卡路里,J191/每磅卡路里/2.2),"") ->  | L191: =IFERROR(減肥減重-K191,"") ->  | M191: =IFERROR(IF(B190<>"",L191/(減肥減重),""),"") -> 
F192: =IFERROR(跑步BMR,"") ->  | G192: =IFERROR(IF(K191>0,F191*活動因子+IF(目標體重="保持",0,IF(目標體重="減少",-500,IF(目標體重="增加",500))),""),"") ->  | H192: =IFERROR(F192*(活動因子),"") ->  | K192: =IFERROR(IF(標準,J192/每磅卡路里,J192/每磅卡路里/2.2),"") ->  | L192: =IFERROR(減肥減重-K192,"") ->  | M192: =IFERROR(IF(B191<>"",L192/(減肥減重),""),"") -> 
F193: =IFERROR(跑步BMR,"") ->  | G193: =IFERROR(IF(K192>0,F192*活動因子+IF(目標體重="保持",0,IF(目標體重="減少",-500,IF(目標體重="增加",500))),""),"") ->  | H193: =IFERROR(F193*(活動因子),"") ->  | K193: =IFERROR(IF(標準,J193/每磅卡路里,J193/每磅卡路里/2.2),"") ->  | L193: =IFERROR(減肥減重-K193,"") ->  | M193: =IFERROR(IF(B192<>"",L193/(減肥減重),""),"") -> 
F194: =IFERROR(跑步BMR,"") ->  | G194: =IFERROR(IF(K193>0,F193*活動因子+IF(目標體重="保持",0,IF(目標體重="減少",-500,IF(目標體重="增加",500))),""),"") ->  | H194: =IFERROR(F194*(活動因子),"") ->  | K194: =IFERROR(IF(標準,J194/每磅卡路里,J194/每磅卡路里/2.2),"") ->  | L194: =IFERROR(減肥減重-K194,"") ->  | M194: =IFERROR(IF(B193<>"",L194/(減肥減重),""),"") -> 
F195: =IFERROR(跑步BMR,"") ->  | G195: =IFERROR(IF(K194>0,F194*活動因子+IF(目標體重="保持",0,IF(目標體重="減少",-500,IF(目標體重="增加",500))),""),"") ->  | H195: =IFERROR(F195*(活動因子),"") ->  | K195: =IFERROR(IF(標準,J195/每磅卡路里,J195/每磅卡路里/2.2),"") ->  | L195: =IFERROR(減肥減重-K195,"") ->  | M195: =IFERROR(IF(B194<>"",L195/(減肥減重),""),"") -> 
F196: =IFERROR(跑步BMR,"") ->  | G196: =IFERROR(IF(K195>0,F195*活動因子+IF(目標體重="保持",0,IF(目標體重="減少",-500,IF(目標體重="增加",500))),""),"") ->  | H196: =IFERROR(F196*(活動因子),"") ->  | K196: =IFERROR(IF(標準,J196/每磅卡路里,J196/每磅卡路里/2.2),"") ->  | L196: =IFERROR(減肥減重-K196,"") ->  | M196: =IFERROR(IF(B195<>"",L196/(減肥減重),""),"") -> 
F197: =IFERROR(跑步BMR,"") ->  | G197: =IFERROR(IF(K196>0,F196*活動因子+IF(目標體重="保持",0,IF(目標體重="減少",-500,IF(目標體重="增加",500))),""),"") ->  | H197: =IFERROR(F197*(活動因子),"") ->  | K197: =IFERROR(IF(標準,J197/每磅卡路里,J197/每磅卡路里/2.2),"") ->  | L197: =IFERROR(減肥減重-K197,"") ->  | M197: =IFERROR(IF(B196<>"",L197/(減肥減重),""),"") -> 
F198: =IFERROR(跑步BMR,"") ->  | G198: =IFERROR(IF(K197>0,F197*活動因子+IF(目標體重="保持",0,IF(目標體重="減少",-500,IF(目標體重="增加",500))),""),"") ->  | H198: =IFERROR(F198*(活動因子),"") ->  | K198: =IFERROR(IF(標準,J198/每磅卡路里,J198/每磅卡路里/2.2),"") ->  | L198: =IFERROR(減肥減重-K198,"") ->  | M198: =IFERROR(IF(B197<>"",L198/(減肥減重),""),"") -> 
F199: =IFERROR(跑步BMR,"") ->  | G199: =IFERROR(IF(K198>0,F198*活動因子+IF(目標體重="保持",0,IF(目標體重="減少",-500,IF(目標體重="增加",500))),""),"") ->  | H199: =IFERROR(F199*(活動因子),"") ->  | K199: =IFERROR(IF(標準,J199/每磅卡路里,J199/每磅卡路里/2.2),"") ->  | L199: =IFERROR(減肥減重-K199,"") ->  | M199: =IFERROR(IF(B198<>"",L199/(減肥減重),""),"") -> 
F200: =IFERROR(跑步BMR,"") ->  | G200: =IFERROR(IF(K199>0,F199*活動因子+IF(目標體重="保持",0,IF(目標體重="減少",-500,IF(目標體重="增加",500))),""),"") ->  | H200: =IFERROR(F200*(活動因子),"") ->  | K200: =IFERROR(IF(標準,J200/每磅卡路里,J200/每磅卡路里/2.2),"") ->  | L200: =IFERROR(減肥減重-K200,"") ->  | M200: =IFERROR(IF(B199<>"",L200/(減肥減重),""),"") -> 
... 798 more rows

Sheet 運動類型查詢 (hidden)
B1: 運動類型查詢
B2: 這張工作表應該保持隱藏。
B3: 運動類型 | C3: 描述 | D3: 因素
B4: 久坐不動 | C4: 一點點到沒在運動 | D4: 1.2
B5: 輕等運動 | C5: 每週運動 1-2 天 | D5: 1.375
B6: 中等運動 | C6: 每週運動 3-5 天 | D6: 1.55
B7: 非常活躍 | C7: 每週運動 6-7 天 | D7: 1.725
B8: 特別活躍 | C8: 每週運動 6-7 天 + 體力勞動/2X 鍛鍊 | D8: 1.9
